{"text_format":"1","workbook":"xlsx","n_sheets":6,"sheets":["INFORMATION","Conseils","Recommandations","Résultats","Détaillé","Déclaration"],"not_rendered":{"charts":8,"images":20,"macros":1,"external_links":0,"defined_names":19,"comments":2,"pivot_tables":0},"unopened":[],"bounds":{"document_bytes":16777216,"sheet_cells":100000,"rows_first":2000,"rows_last":500,"rows_between":2000,"halvings":0,"cell_chars":16384,"cell_head_chars":4096},"cells_cut":0,"cells_raw":0,"read":"whole","date_system":"1900"}

{"sheet":"INFORMATION","index":0,"n_rows":26,"n_cols":14,"rows_kept":26,"cut":false,"hidden":false,"merged":[[12,0,12,3],[1,1,1,8],[2,1,2,8],[4,1,4,8],[3,1,3,8],[23,0,23,1],[18,0,18,1],[5,0,5,8],[11,0,11,8],[17,4,17,8],[7,3,7,8],[8,7,8,8],[17,0,17,3],[7,0,7,2],[8,0,8,2],[8,3,8,6],[13,4,13,8],[6,0,6,2],[6,3,6,8],[9,0,9,2],[9,3,9,8],[23,7,23,8],[13,0,13,3],[12,4,12,8],[14,0,15,3],[25,0,25,8],[19,0,19,1],[18,7,18,8],[19,7,19,8],[24,0,24,8],[22,0,22,1],[21,0,21,1],[20,0,20,1],[20,7,20,8],[21,7,21,8],[22,7,22,8],[16,0,16,2]]}
["Document basé sur la norme NF EN 62198",null,null,null,null,null,null,null,"Enregistrement qualité :  A4 100% vertical"]
[null,"Gestion des risques liés à un projet - Lignes directrices pour l'application"]
[null,"SYSTÈME DE MANAGEMENT DES RISQUES DES PROJETS"]
[null,{"$f":"\"- LA QUALITÉ POUR PERFORMER -\"","v":"- LA QUALITÉ POUR PERFORMER -"}]
[null,"Édition  Afnor\nwww.afnor.org, mai 2014\""]
["Attention : Seules les cases blanches écrites en bleu peuvent être modifiées par l’utilisateur. Cela concerne toutes les parties de l’outil."]
["Etablissement :",null,null,"Nom de l'établissement / entreprise / service..."]
[" Responsable du SMR Projets : ",null,null,"NOM et Prénom du Responsable Qualité"]
[" Contact du Responsable du SMR Projets :",null,null,"Email :",null,null,null,"Tél :"]
["Projet Évalué :",null,null,"Nom du Projet"]
[]
["TABLEAU DE PRÉSENTATION"]
["LETTRE AUX UTILISATEURS",null,null,null,"DESCRIPTION DE L'OUTIL"]
["SMR Projets vous propose une manière facile pour évaluer et lever les incertitudes de vos projets. Il vous est destiné à vous, les responsables de projets, afin de bien contrôler et réaliser vos activités selon la norme NF EN 62198:2014 et ses recommandations. Gratuit, il est simple d'utilisation et applicable à tous types de projets. \n\nCet outil est aussi votre tableau de bord pour suivre, commenter et préparer un plan d'action de votre système de management des risques liés aux projets. De plus, il augmentera votre visibilité afin de minimiser les incertitudes du projet. \n\nL'outil est réalisable à tout moment du projet.\n\nL'équipe SMR Projets vous souhaite un bon travail.",null,null,null,"SMR Projets est un outil sous format Excel constitué de six onglets :\n- INFORMATION : Explique le fonctionnement de l'outil et les critères d'évaluation\n    - RECOMMANDATIONS : Des recommandations extraites de la norme NF EN 62198 pour analyser les processus (pilotage, réalisation et support) du projet\n    - RÉSULTATS GLOBAUX : Vision global des résultats d'état des lieux \n    - RÉSULTATS DÉTAILLÉS : Résumé chiffré et détaillé des recommandations évaluées, ainsi que du plan d'action à mettre en œuvre\n    - CONSEILS : Conaissances documentaires nécessaires et terminologie.\n    - DÉCLARATION : Usage de l'ISO 17050 pour déclarer ses résultats s'ils sont considérés comme probants et communicables",null,null,null,null,null,"\nAttention : Cet outil a été développé avec le système d'exploitation Windows. Si vous l'utilisez dois Mac ou souhaitez l'imprimer, il se peut que la mise en page soit midifiée.  "]
[{"$f":"\" - LA QUALITÉ POUR PERFORMER - \"","v":" - LA QUALITÉ POUR PERFORMER - "},null,null,null," ",null,null,null,null,null,null,null,"Utilitaires pour l'Autodiagnostic"]
[null,null,null,null,null,null,null,null,null,null,null,null,"Paramétrage des affectations selon le N° du choix"]
["Placer le curseur ici pour voir le commentaire",null,null,null,null,null,null,null,null,null,null,null,"Utilisé pour  {Exigences} : affectation d'un N° selon le choix réalisé"]
["Niveaux de VÉRACITÉquant à la RÉALISATION \ndes actions associées aux LIGNES DIRECTRICES de la norme",null,null,null,"LIBELLÉS des niveaux de SUIVI\ndes LIGNES DIRECTRICES de la norme ",null,null,null,null,null,null,null,"Choix proposé","A faire en manuel\nN° du choix croissant selon son  Ordre Alphabétique : 1 à …"]
["Libellés explicites \ndes niveaux de VÉRACITÉ",null,"Choix de \nVÉRACITÉ","Taux de \nVÉRACITÉ","Taux moyen \nMinimal","Taux moyen\nMaximal","Niveaux de SUIVI","Libellés explicites \ndes niveaux de SUIVI",null,null,null,null,{"$f":"C19","v":"Choix de \nVÉRACITÉ"},1]
["Niveau 1 : L'action n'est pas suivi ou alors de manière très aléatoire.",null,"Faux",1E-3,0,{"$f":"E21-0.01","v":9.0000000000000011E-2},"Insuffisant","Niveau 1 : Il est nécessaire de formaliser les activités réalisées.",null,null,null,null,{"$f":"C20","v":"Faux"},2]
["Niveau 2 : L'action est suivi quelques fois de manière informelle.",null,"Plutôt Faux",{"$f":"(E21+F21)/2","v":0.29499999999999998},0.1,{"$f":"E22-0.01","v":0.49},"Incomplet","Niveau 2 : Il est nécessaire de pérenniser la bonne exécution des activités.",null,null,null,null,"Plutôt Faux",3]
["Niveau 3 : L'action est formalisée et réalisée. ",null,"Plutôt Vrai",{"$f":"(E22+F22)/2","v":0.69500000000000006},0.5,{"$f":"E23-0.01","v":0.89},"Satisfaisant","Niveau 3 : Il est nécessaire de tracer et d'améliorer les activités.",null,null,null,null,{"$f":"C22","v":"Plutôt Vrai"},4]
["Niveau 4 : L'action est formalisée, réalisée, tracée et améliorée.",null,"Vrai",1,0.9,1,"Total","Niveau 4 : BRAVO ! Maintenez et communiquez vos résultats.",null,null,null,null,{"$f":"C23","v":"Vrai"},5]
["Niveau non concerné",null,"Non Concerné",0,"NC",0,"NC","Niveau non concerné",null,null,null,null,{"$f":"C24","v":"Non Concerné"},6]
["NB : Vous pouvez modifier les limites minimales ci-dessus des intervalles de conformité"]
["Pour en savoir plus, voir à partir de février 2018 l'étude sur internet : www.utc.fr/master-qualite, puis \"Travaux\" \"Qualité-Management\"\nÉquipe étudiants \"Outil d’Autodiagnostic SMR Projets basé sur la norme NF EN 62198:2014\". Contact UTC : gilbert.farges@utc.fr\nContacts de l'outil : Camila ARAUJO : camila.ap.araujo@gmail.com ; Caroline MAILLARD : caroline.maillardleroy71@gmail.com; Meriem SMIRANI : meryam.smirani@gmail.com ;"]

{"sheet":"Conseils","index":1,"n_rows":60,"n_cols":6,"rows_kept":60,"cut":false,"hidden":false,"merged":[[45,1,45,5],[46,1,46,5],[47,1,47,5],[42,1,42,5],[43,1,43,5],[44,1,44,5],[59,0,59,5],[1,0,1,5],[2,0,2,5],[3,0,3,5],[4,0,4,5],[27,1,27,5],[26,1,26,5],[37,1,37,5],[38,1,38,5],[39,1,39,5],[28,1,28,5],[29,1,29,5],[30,1,30,5],[31,1,31,5],[32,1,32,5],[33,1,33,5],[6,0,6,5],[54,1,54,5],[55,1,55,5],[56,1,56,5],[57,1,57,5],[49,1,49,5],[50,1,50,5],[51,1,51,5],[52,1,52,5],[53,1,53,5],[34,1,34,5],[35,1,35,5],[36,1,36,5],[48,1,48,5],[40,1,40,5],[41,1,41,5],[8,0,10,0],[7,1,7,3],[7,4,7,5],[8,1,8,3],[8,4,8,5],[9,1,9,3],[9,4,9,5],[23,4,23,5],[12,0,17,0],[10,1,10,3],[10,4,10,5],[11,1,11,3],[11,4,11,5],[12,1,12,3],[12,4,12,5],[13,1,13,3],[13,4,13,5],[14,1,14,3],[14,4,14,5],[15,1,15,3],[15,4,15,5],[16,1,16,3],[16,4,16,5],[18,0,24,0],[24,1,24,3],[24,4,24,5],[17,1,17,3],[17,4,17,5],[18,1,18,3],[18,4,18,5],[19,1,19,3],[19,4,19,5],[20,1,20,3],[20,4,20,5],[21,1,21,3],[21,4,21,5],[22,1,22,3],[22,4,22,5],[23,1,23,3]]}
["Document basé sur la norme NF EN 62198",null,null,null,null,"Enregistrement qualité :  A4 100% vertical"]
["Gestion des risques liés à un projet - Lignes directrices pour l'application"]
["SYSTÈME DE MANAGEMENT DES RISQUES DES PROJETS"]
[{"$f":"\"- LA QUALITÉ POUR PERFORMER -\"","v":"- LA QUALITÉ POUR PERFORMER -"}]
["Édition  Afnor\nwww.afnor.org, mai 2014\""]
[]
["Système documentaire nécéssaire"]
["Chapître","Informations",null,null,"Remarque"]
["4 - Management","Management du risque dans les projets",null,null,"Vous pouvez commenter"]
[null,"Phases classiques d'un projet",null,null,"Vous pouvez commenter"]
[null,"Principales parties prenantes à un projet",null,null,"Vous pouvez commenter"]
["5 - Principes","Une liste des principes à respecter à tous les niveaux ",null,null,"Vous pouvez commenter"]
["6 - Cadre organisationnel  du management des risques liés à un projet","Généralités : Relations entre les composants, adaptées de l'ISO 31000",null,null,"Vous pouvez commenter"]
[null,"Mandat et engagement",null,null,"Vous pouvez commenter"]
[null,"Conception du cadre organisationnel : Compréhension du projet et de son contexte, Mise en place d'une politique, Responsabilité, Intégration aux processus de gestion de projet, Ressources, Mise en place de mécanismes de communication et de génération de rapport internes et externes sur le projet",null,null,"Vous pouvez commenter"]
[null,"Mise en œuvre du cadre organisationnel et d'um processus de management des risques",null,null,"Vous pouvez commenter"]
[null,"Surveillance et revue ",null,null,"Vous pouvez commenter"]
[null,"Amélioration continue ",null,null,"Vous pouvez commenter"]
["7 - Processus de management des risques liés au projet","Généralités : Projet de processus de management des risques, adapté de l'ISO 31000",null,null,"Vous pouvez commenter"]
[null,"Communication et concertation",null,null,"Vous pouvez commenter"]
[null,"Etablissement du contexte externe et interne : Définition des critères de risque, Eléments essentiels",null,null,"Vous pouvez commenter"]
[null,"Appréciation du risque :  Identification, analyse et évaluation du risque",null,null,"Vous pouvez commenter"]
[null,"Traitement du risque : Plans et sélection des options de traitement du risque",null,null,"Vous pouvez commenter"]
[null,"Surveillance et revue",null,null,"Vous pouvez commenter"]
[null,"Enregistrement et rapport : Documentation et registre des risques",null,null,"Vous pouvez commenter"]
[]
["Terminologie","Définition"]
["Analyse des risques ","Processus mis en œuvre pour comprendre la nature d'un risque et pour déterminer le niveau de risque \nNOTE 1      L'analyse du risque fournit la base de l'évaluation du risque et les décisions relatives au traitement du risque. \nNOTE 2      L'analyse du risque inclut l'estimation du risque."]
["Appréciation des risques ","Ensemble du processus d'identification des risques, d'analyse du risque et d'évaluation du risque."]
["Attitude face au risque ","Approche d'un organisme pour apprécier un risque avant, éventuellement, de saisir ou préserver une opportunité ou de prendre ou rejeter un risque."]
["Cadre organisationnel de management des risques","ensemble d'éléments établissant les fondements et dispositions organisationnelles présidant à la conception, \nla mise en œuvre, la surveillance, la revue et l'amélioration continue du management du risque dans tout l'organisme \nNOTE 1     Les fondements incluent la politique, les objectifs, le mandat et l'engagement envers le management du risque. \nNOTE 2      Les dispositions organisationnelles incluent les plans, les relations, les responsabilités, les ressources, les processus et les activités. \nNOTE 3     Le cadre organisationnel du management du risque fait partie intégrante des politiques stratégiques et opérationnelles ainsi que des pratiques de l'ensemble de l'organisme. "]
["Communication et concertation","Processus itératifs et continus mis en œuvre par un organisme afin de fournir, partager ou obtenir des informations et d'engager un dialogue avec les parties prenantes et autres parties, concernant le management des risques.\nNOTE 1      Ces informations peuvent concerner l'existence, la nature, la forme, la vraisemblance, l'importance, l'évaluation, l'acceptabilité et le traitement du management du risque. \nNOTE 2      La concertation est un processus de communication argumentée à double sens entre un organisme et ses parties prenantes sur une question donnée avant de prendre une décision ou de déterminer une orientation concernant ladite question. La concertation est \n⎯  un processus dont l'effet sur une décision s'exerce par l'influence plutôt que par le pouvoir, et  \n⎯  une contribution à une prise de décision, et non une prise de décision conjointe. "]
["Conséquence","Effet d'un événement affectant les objectifs \nNOTE 1      Un événement peut engendrer une série de conséquences. \nNOTE 2      Une conséquence peut être certaine ou incertaine et peut avoir des effets positifs ou négatifs sur l'atteinte des objectifs. \nNOTE 3      Les conséquences peuvent être exprimées de façon qualitative ou quantitative. \nNOTE 4      Des conséquences initiales peuvent déclencher des réactions en chaîne. "]
["Contexte","Environnement interne ou externe dans lequel l'organisme cherche à atteindre ses objectifs \nLe contexte externe peut inclure : \n⎯   l'environnement culturel, social, politique, légal, réglementaire, financier, technologique, économique, naturel et \nconcurrentiel, au niveau international, national, régional ou local, \n⎯   les facteurs et tendances ayant un impact déterminant sur les objectifs de l'organisme, et \n⎯   les relations avec les parties prenantes externes, leurs perceptions et leurs valeurs. \nLe contexte interne peut inclure :\n⎯ la gouvernance, l'organisation, les rôles et responsabilités, \n⎯ les politiques, les objectifs et les stratégies mises en place pour atteindre ces derniers, \n⎯ les capacités, en termes de ressources et de connaissances (par exemple capital, temps, personnels, processus, \nsystèmes et technologies), \n⎯  les systèmes d'information, les flux d'information et les processus de prise de décision (à la fois formels et informels), \n⎯  les relations avec les parties prenantes internes, ainsi que leurs perceptions et leurs valeurs, \n⎯ la culture de l'organisme, \n⎯ les normes, lignes directrices et modèles adoptés par l'organisme, et \n⎯ la forme et l'étendue des relations contractuelles. "]
["Critères des risques","Termes de référence vis-à-vis desquels l'importance d'un risque est évaluée.\nNOTE 1      Les critères de risque sont fondés sur les objectifs de l'organisme ainsi que sur le contexte externe et interne.\nNOTE 2      Les critères de risque peuvent être issus de normes, de lois, de politiques et d'autres exigences. "]
["Établissement du contexte ","Définition des paramètres externes et internes à prendre en compte lors du management du risque et définition du domaine d'application ainsi que des critères de risque pour la politique de management des risques."]
["Évaluation du risque ","Processus de comparaison des résultats de l'analyse du risque avec les critères de risque afin de déterminer si le risque et/ou son importance sont acceptables ou tolérables \nNOTE         L'évaluation du risque aide à la prise de décision relative au traitement du risque."]
["Événement ","Occurrence ou changement d'un ensemble particulier de circonstances \nNOTE 1      Un événement peut être unique ou se reproduire et peut avoir plusieurs causes. \nNOTE 2      Un événement peut consister en quelque chose qui ne se produit pas. \nNOTE 3      Un événement peut parfois être qualifié «d'incident» ou «d'accident». \nNOTE 4      Un  événement  sans conséquences peut également être appelé «quasi-accident» ou «incident» ou «presque succès». "]
["Gestion de projet ","Planification, organisation, suivi, maîtrise et compte-rendu de tous les aspects d'un projet et de la motivation des personnes impliquées pour atteindre les objectifs du projet."]
["Identification des risques ","Processus de recherche, de reconnaissance et de description des risques.\nNOTE 1      L'identification des risques comprend l'identification des sources de risque, des événements, de leurs causes et de leurs conséquences potentielles. \nNOTE 2      L'identification des risques peut faire appel à des données historiques, des analyses théoriques, des avis d'experts et autres personnes compétentes et tenir compte des besoins des parties prenantes."]
["Management des risques ","Activités coordonnées dans le but de diriger et piloter un organisme vis-à-vis du risque."]
["Moyen de maîtrise ","Mesure qui modifie un risque.\nNOTE 1     Un moyen de maîtrise du risque inclut n'importe quels processus, politique, dispositif, pratique ou autres actions qui modifient un risque. \nNOTE 2      Un moyen de maîtrise du risque n'aboutit pas toujours nécessairement à la modification voulue ou supposée.  "]
["Niveau de risque ","Importance d'un risque ou combinaison de risques, exprimée en termes de combinaison des conséquences et de leur vraisemblance."]
["Partie prenante ","Personne ou organisme susceptible d'affecter, d'être affecté ou de se sentir lui-même affecté par une décision ou une activité."]
["Plan de gestion de projet ","Document qui spécifie les éléments nécessaires permettant d'atteindre les objectifs du projet \nNote 1 à l'article:    Il convient que le plan de gestion de projet comprenne le \nplan qualité du projet ou s'y réfère. \nNote 2 à l'article:   Le plan de gestion de projet comprend également d'autres plans ou y fait référence, tels que ceux concernant l'organisation, les ressources, le planning, le budget, le management du risque, le management environnemental, la gestion en matière d'hygiène et de sécurité, ainsi que la gestion de la sûreté, le cas échéant. "]
["Plan de management des risques","Programme inclus dans le cadre organisationnel de management des risques, spécifiant l'approche, les composantes du management et les ressources auxquelles doit avoir recours le management des risques.\nNOTE 1     Les composantes du management incluent, par exemple, les procédures, les pratiques, l'attribution des responsabilités, le déroulement chronologique des activités. \nNOTE 2      Le plan de management du risque peut être appliqué à un produit, un processus, un projet particulier, à une partie de l'organisme ou à l'organisme tout entier. "]
["Politique de management des risques","Déclaration des intentions et des orientations générales d'un organisme en relation avec le management du risque \nLa politique porte sur les points suivants: \na) les raisons qui justifient le management des risques dans le projet; \nb) les liens entre les objectifs et politiques des organisations et la politique de management des risques liés au projet; c) les responsabilités en matière de management des risques liés au projet dans toutes les organisations concernées; \nd) la disposition des ressources nécessaires pour le management des risques \ne) la mesure et le rapport des performances du management des risques liés au projet; et \nf) l'engagement à examiner et améliorer régulièrement la politique et le cadre organisationnel du management des risques liés au projet."]
["Processus de management des risques","Application systématique de politiques, procédures et pratiques de management aux activités de communication, de concertation, d'établissement du contexte, ainsi qu'aux activités d'identification, d'analyse, d'évaluation, de traitement, de surveillance et de revue des risques."]
["Profil des risques ","Description d'un ensemble quelconque de risques \nNOTE         Cet ensemble de risques peut inclure les risques relatifs à l'ensemble de l'organisme, à une partie de celui-ci, \nou être défini autrement. "]
["Projet","Processus unique, qui consiste en un ensemble d’activités coordonnées et maîtrisées, comportant des dates de début et de fin, entrepris dans le but d'atteindre un objectif conforme à des exigences spécifiques, incluant les contraintes de délais, de coûts et de ressources \nNote 1 à l'article:    Il est possible qu’un projet individuel fasse partie d’une structure de projet plus large. \nNote 2 à l'article:  Dans certains projets, les objectifs sont mis à jour et les caractéristiques du produit sont déterminées progressivement, à mesure que le projet progresse. \nNote 3 à l'article:   Le produit du projet est en général défini dans le domaine d'application du projet. Il peut s'agir d'une ou de plusieurs unités de produit, matériel ou non. \nNote 4 à l'article:    En principe, l'organisation du projet est provisoire et établie pour la durée de vie du projet. \nNote 5 à l'article:   La complexité des interactions entre les activités d'un projet n'est pas nécessairement liée à la taille du projet. "]
["Propriétaire du risque ","Personne ou entité ayant la responsabilité du risque et ayant autorité pour le gérer."]
["Revue","Activité entreprise afin de déterminer l'adaptation, l'adéquation et l'efficacité de l'objet étudié pour atteindre les objectifs établis \nNOTE         La revue peut s'appliquer à un cadre organisationnel de management du risque, un processus de management du risque, un risque ou un moyen de maîtrise du risque."]
["Risque ","Événement susceptible de mettre en cause la réalisation des objectifs de l’entreprise. Il peut être externe ou interne à l’entreprise.\nNOTE 1      Un effet est un écart, positif et/ou négatif, par rapport à une attente. \nNOTE 2     Les objectifs peuvent avoir différents aspects (par exemple buts financiers, de santé et de sécurité, ou environnementaux) et peuvent concerner différents niveaux (niveau stratégique, niveau d'un projet, d'un produit, d'un processus ou d'un organisme tout entier). \nNOTE 3     Un risque est souvent caractérisé en référence à des événements et des conséquences potentiels ou à une combinaison des deux. \nNOTE 4      Un risque est souvent exprimé en termes de combinaison des conséquences d'un événement (incluant des changements de circonstances) et de sa vraisemblance. \nNOTE 5      L'incertitude est l'état, même partiel, de défaut d'information concernant la compréhension ou la connaissance d'un événement, de ses conséquences ou de sa vraisemblance. "]
["Risque résiduel ","Risque subsistant après le traitement du risque.\nNOTE 1      Un risque résiduel peut inclure un risque non identifié. \nNOTE 2      Un risque résiduel peut également être appelé «risque prise\"."]
["Source de risque ","Tout élément qui, seul ou combiné à d'autres, présente un potentiel intrinsèque d'engendrer un risque.\nNOTE         Une source de risque peut être tangible ou intangible. "]
["Surveillance","Vérification, supervision, observation critique ou détermination de l'état afin d'identifier continûment des changements par rapport au niveau de performance exigé ou attendu \nNOTE         La surveillance peut s'appliquer à un cadre organisationnel de management du risque, un processus de management du risque, un risque ou un moyen de maîtrise du risque."]
["Traitement des risques ","Processus destiné à modifier un risque.\nNOTE 1      Le traitement du risque peut inclure \n⎯ un refus du risque en décidant de ne pas démarrer ou poursuivre l'activité porteuse du risque, \n⎯ la prise ou l'augmentation d'un risque afin de saisir une opportunité, \n⎯ l'élimination de la source de risque, \n⎯  une modification de la vraisemblance,\n⎯ une modification des conséquences,\n⎯ un partage du risque avec une ou plusieurs autres parties (incluant des contrats et un financement du risque), et \n⎯ un maintien du risque fondé sur une décision argumentée. \nNOTE 2     Les traitements du risque portant sur les conséquences négatives sont parfois appelés «atténuation du risque», «élimination du risque», «prévention du risque» et «réduction du risque». \nNOTE 3      Le traitement du risque peut créer de nouveaux risques ou modifier des risques existants. \n"]
["Vraisemblance","Possibilité que quelque chose se produise \nNOTE 1      Dans la terminologie du management du risque, le mot «vraisemblance» est utilisé pour indiquer la possibilité que quelque chose se produise, que cette possibilité soit définie, mesurée ou déterminée de façon objective ou subjective, qualitative ou quantitative, et qu'elle soit décrite au moyen de termes généraux ou mathématiques (telles une probabilité ou une fréquence sur une période donnée). \nNOTE 2     Le terme anglais «likelihood» (vraisemblance) n'a pas d'équivalent direct dans certaines langues et c'est souvent l'équivalent du terme «probability» (probabilité) qui est utilisé à la place. En anglais, cependant, le terme «probability» (probabilité) est souvent limité à son interprétation mathématique. Par conséquent, dans la terminologie du \nmanagement du risque, le terme «vraisemblance» est utilisé avec l'intention qu'il fasse l'objet d'une interprétation aussi large que celle dont bénéficie le terme «probability» (probabilité) dans de nombreuses langues autres que l'anglais.  \n"]
[]
["Cartographie de Processus"]

{"sheet":"Recommandations","index":2,"n_rows":72,"n_cols":27,"rows_kept":72,"cut":false,"hidden":false,"merged":[[65,5,65,6],[32,5,32,6],[34,5,34,6],[35,5,35,6],[39,5,39,6],[44,5,44,6],[47,5,47,6],[53,5,53,6],[11,5,11,6],[22,5,22,6],[52,5,52,6],[26,5,26,6],[61,5,61,6],[8,1,8,6],[12,8,14,8],[19,8,20,8],[21,8,22,8],[1,1,1,6],[2,1,2,2],[2,3,2,6],[3,1,3,2],[3,3,3,5],[3,6,7,6],[4,1,5,2],[4,3,4,5],[5,3,5,4],[6,1,7,2],[6,3,7,5],[10,5,10,6]]}
[null,{"$f":"INFORMATION!A1","v":"Document basé sur la norme NF EN 62198"},null,null,null,null,"Impression sur pages A4 100% en format horizontal"]
[null,{"$f":"INFORMATION!B3","v":"SYSTÈME DE MANAGEMENT DES RISQUES DES PROJETS"}]
[null,{"$f":"INFORMATION!A7","v":"Etablissement :"},null,{"$f":"INFORMATION!D7","v":"Nom de l'établissement / entreprise / service..."}]
[null,"Date de l'autodiagnostic : ",null,null,null,null,"Signature du responsable de l'autodiagnostic :\n\n\n\n\n"]
[null,"Responsable de l'autodiagnostic : ",null,"NOM et Prénom"]
[null,null,null,"Tél :",null,"@ :"]
[null,"L'équipe du projet :",null,"Nom et Prénom des participants"]
[]
[null,"Attention : Le calcul de taux (%) ne prend pas en compte les questions où vous avez répondu \"Non Concerné\". ",null,null,null,null,null,null,null,null,null,null,null,null,null,null,null,"TABLEAU DE FORMULES"]
[null,"Rec.","Recommandations de la norme","Evaluation","Taux %","Libellés \ndes évaluations","Modes de preuve \net commentaires",null,null,null,null,null,null,null,null,"Automatique : pondération de chaque exigence","Taux de CONFORMITÉ pondéré sur l'exigence","Niveau de RESPECT pour le sous-article",null,"Automatique : pondération de chaque sous- chapitre","Taux  moyen de CONFORMITÉ pondéré pour le sous-article",null,"Somme des pondérations des Articles","Taux moyen de conformité sur la Norme","Niveau de RESPECT pour la norme"]
[null,"P1","Processus Pilotage",{"$f":"V11","v":"Niveau non concerné"},{"$f":"IF($D11=\"Niveau non concerné\",\"NC\",U11)","v":"NC"},{"$f":"IFERROR(IF(E11=INFORMATION!$G$24,INFORMATION!$H$24,IF(E11<=INFORMATION!$F$20,INFORMATION!$H$20,IF(E11<=INFORMATION!$F$21,INFORMATION!$H$21,IF(E11<=INFORMATION!$F$22,INFORMATION!$H$22,INFORMATION!$H$23)))),\"\")","v":"Niveau non concerné"},null,null,null,null,"Quantité des questions","Choix Réalisé","Nº du choix","% Veracité du choix","NA","Somme des pondérations sur les exigences","Taux  moyen de CONFORMITÉ pour le sous-article","vérifier si Somme = 1 =>  ","NA",{"$f":"SUM(T12:T34)","v":0},{"$f":"IFERROR(SUM(U12:U34),\"\")","v":0},{"$f":"IFERROR(IF(U11=INFORMATION!$D$24,INFORMATION!$H$24,IF(U11<=INFORMATION!$F$20,INFORMATION!$G$20,IF(U11<=INFORMATION!$F$21,INFORMATION!$G$21,IF(U11<=INFORMATION!$F$22,INFORMATION!$G$22,INFORMATION!$G$23)))),\"\")","v":"Niveau non concerné"},{"$f":"1/3","v":0.33333333333333331},{"$f":"U11*W11","v":0}]
[null,"Gr1","Elaboration de la stratégie de Management des Risques liés à un projet ",{"$f":"R12","v":"Niveau non concerné"},{"$f":"IF($D12=\"Niveau non concerné\",\"NC\",$Q12)","v":"NC"},{"$f":"IFERROR(IF(E12=INFORMATION!$G$24,INFORMATION!$H$24,IF(E12<=INFORMATION!$F$20,INFORMATION!$H$20,IF(E12<=INFORMATION!$F$21,INFORMATION!$H$21,IF(E12<=INFORMATION!$F$22,INFORMATION!$H$22,INFORMATION!$H$23)))),\"\")","v":"Niveau non concerné"},null,null,null,null,"Nb critères","Sous-Article",null,"vérifier si Somme = 1 =>  ",null,{"$f":"SUM(P13:P22)","v":0.99999999999999989},{"$f":"IFERROR(SUM(Q13:Q22),\"\")","v":0},{"$f":"IFERROR(IF(Q12=INFORMATION!$F$24,INFORMATION!$H$24,IF(Q12<=INFORMATION!$F$20,INFORMATION!$G$20,IF(Q12<=INFORMATION!$F$21,INFORMATION!$G$21,IF(Q12<=INFORMATION!$F$22,INFORMATION!$G$22,INFORMATION!$G$23)))),\"\")","v":"Niveau non concerné"},{"$f":"IF(R12=\"Niveau non concerné\",1,0)","v":1},{"$f":"IF(R12=\"Niveau non concerné\",0,1/COUNTIF($S$12:$S$33,\"=0\"))","v":0},{"$f":"T12*Q12","v":0},null,null,null,null,null,"Faux"]
[null,"Rec01","La politique et le processus de management des risques liés au projet sont définis et intégrés dans les processus de gestion de projet et approuvés par la direction.",null,{"$f":"IF($D13=\"Non concerné\",\"NC\",$N13)","v":""},{"$f":"IF(D13=\"\",\"\",CHOOSE($M13,\"Libellé du critère quand il sera choisi\",INFORMATION!$A$20,INFORMATION!$A$21,INFORMATION!$A$22,INFORMATION!$A$23,\"Non concerné\"))","v":""},"Vous pouvez commenter",null,null,null,1,{"$f":"$D13","v":0},{"$f":"IFERROR((VLOOKUP($D13,INFORMATION!$M$20:$N$24,2,FALSE)),\"\")","v":""},{"$f":"IFERROR(CHOOSE($M13,\"\",INFORMATION!$D$20,INFORMATION!$D$21,INFORMATION!$D$22,INFORMATION!$D$23,INFORMATION!$D$24),\"\")","v":""},{"$f":"IF(L13=\"Non Concerné\",1,0)","v":0},{"$f":"IF(L13=\"Non Concerné\",0,1/COUNTIF($O$13:$O$22,\"=0\"))","v":0.1},{"$f":"IFERROR(N13*P13,\"\")","v":""},null,null,null,null,null,null,null,null,null,"Plutôt Faux"]
[null,"Rec02","Le processus de management des risques, ainsi que les risques et leur traitement sont documentés.",null,{"$f":"IF($D14=\"Non concerné\",\"NC\",$N14)","v":""},{"$f":"IF(D14=\"\",\"\",CHOOSE($M14,\"Libellé du critère quand il sera choisi\",INFORMATION!$A$20,INFORMATION!$A$21,INFORMATION!$A$22,INFORMATION!$A$23,\"Non concerné\"))","v":""},"Vous pouvez commenter",null,null,null,{"$f":"K13+1","v":2},{"$f":"D14","v":0},{"$f":"IFERROR((VLOOKUP($D14,INFORMATION!$M$20:$N$24,2,FALSE)),\"\")","v":""},{"$f":"IFERROR(CHOOSE($M14,\"\",INFORMATION!$D$20,INFORMATION!$D$21,INFORMATION!$D$22,INFORMATION!$D$23,INFORMATION!$D$24),\"\")","v":""},{"$f":"IF(L14=\"Non Concerné\",1,0)","v":0},{"$f":"IF(L14=\"Non Concerné\",0,1/COUNTIF($O$13:$O$22,\"=0\"))","v":0.1},"",null,null,null,null,null,null,null,null,null,"Plutôt Vrai"]
[null,"Rec03","La politique et les avantages de management des risques est communiquée à toutes les parties prenantes du projet.",null,"",{"$f":"IF(D15=\"\",\"\",CHOOSE($M15,\"Libellé du critère quand il sera choisi\",INFORMATION!$A$20,INFORMATION!$A$21,INFORMATION!$A$22,INFORMATION!$A$23,\"Non concerné\"))","v":""},"Vous pouvez commenter",null,null,null,{"$f":"K14+1","v":3},0,{"$f":"IFERROR((VLOOKUP($D15,INFORMATION!$M$20:$N$24,2,FALSE)),\"\")","v":""},{"$f":"IFERROR(CHOOSE($M15,\"\",INFORMATION!$D$20,INFORMATION!$D$21,INFORMATION!$D$22,INFORMATION!$D$23,INFORMATION!$D$24),\"\")","v":""},0,{"$f":"IF(L15=\"Non Concerné\",0,1/COUNTIF($O$13:$O$22,\"=0\"))","v":0.1},{"$f":"IFERROR(N15*P15,\"\")","v":""},null,null,null,null,null,null,null,null,null,"Vrai"]
[null,"Rec04","Les objectifs et les engagements de management des risques liés au projet sont établis dans la politique et la stratégie de l'organisation et compris par toutes les parties.",null,"",{"$f":"IF(D16=\"\",\"\",CHOOSE($M16,\"Libellé du critère quand il sera choisi\",INFORMATION!$A$20,INFORMATION!$A$21,INFORMATION!$A$22,INFORMATION!$A$23,\"Non concerné\"))","v":""},"Vous pouvez commenter",null,null,null,4,0,{"$f":"IFERROR((VLOOKUP($D16,INFORMATION!$M$20:$N$24,2,FALSE)),\"\")","v":""},{"$f":"IFERROR(CHOOSE($M16,\"\",INFORMATION!$D$20,INFORMATION!$D$21,INFORMATION!$D$22,INFORMATION!$D$23,INFORMATION!$D$24),\"\")","v":""},0,0.1,"",null,null,null,null,null,null,null,null,null,"Non Concerné"]
[null,"Rec05","Les critères de risque et les mesures de l'impact des risques tiennent compte de tous les objectifs du projet.",null,"",{"$f":"IF(D17=\"\",\"\",CHOOSE($M17,\"Libellé du critère quand il sera choisi\",INFORMATION!$A$20,INFORMATION!$A$21,INFORMATION!$A$22,INFORMATION!$A$23,\"Non concerné\"))","v":""},"Vous pouvez commenter",null,null,null,5,0,{"$f":"IFERROR((VLOOKUP($D17,INFORMATION!$M$20:$N$24,2,FALSE)),\"\")","v":""},{"$f":"IFERROR(CHOOSE($M17,\"\",INFORMATION!$D$20,INFORMATION!$D$21,INFORMATION!$D$22,INFORMATION!$D$23,INFORMATION!$D$24),\"\")","v":""},0,0.1,""]
[null,"Rec06","Les opportunités permettant d’atteindre les objectifs du projet sont identifiées.",null,"",{"$f":"IF(D18=\"\",\"\",CHOOSE($M18,\"Libellé du critère quand il sera choisi\",INFORMATION!$A$20,INFORMATION!$A$21,INFORMATION!$A$22,INFORMATION!$A$23,\"Non concerné\"))","v":""},"Vous pouvez commenter",null,null,null,6,0,{"$f":"IFERROR((VLOOKUP($D18,INFORMATION!$M$20:$N$24,2,FALSE)),\"\")","v":""},{"$f":"IFERROR(CHOOSE($M18,\"\",INFORMATION!$D$20,INFORMATION!$D$21,INFORMATION!$D$22,INFORMATION!$D$23,INFORMATION!$D$24),\"\")","v":""},0,0.1,""]
[null,"Rec07","Les objectifs, le domaine d'application et les paramètres des activités du projet ou des parties du projet dans lesquels le processus de management des risques s'applique sont bien définis et fixés.",null,"",{"$f":"IF(D19=\"\",\"\",CHOOSE($M19,\"Libellé du critère quand il sera choisi\",INFORMATION!$A$20,INFORMATION!$A$21,INFORMATION!$A$22,INFORMATION!$A$23,\"Non concerné\"))","v":""},"Vous pouvez commenter",null,null,null,7,0,{"$f":"IFERROR((VLOOKUP($D19,INFORMATION!$M$20:$N$24,2,FALSE)),\"\")","v":""},{"$f":"IFERROR(CHOOSE($M19,\"\",INFORMATION!$D$20,INFORMATION!$D$21,INFORMATION!$D$22,INFORMATION!$D$23,INFORMATION!$D$24),\"\")","v":""},0,0.1,""]
[null,"Rec08","L'avancement de la mise en œuvre des tâches de traitement des risques est intégré à la gestion globale des performances du projet.",null,"",{"$f":"IF(D20=\"\",\"\",CHOOSE($M20,\"Libellé du critère quand il sera choisi\",INFORMATION!$A$20,INFORMATION!$A$21,INFORMATION!$A$22,INFORMATION!$A$23,\"Non concerné\"))","v":""},"Vous pouvez commenter",null,null,null,8,0,{"$f":"IFERROR((VLOOKUP($D20,INFORMATION!$M$20:$N$24,2,FALSE)),\"\")","v":""},{"$f":"IFERROR(CHOOSE($M20,\"\",INFORMATION!$D$20,INFORMATION!$D$21,INFORMATION!$D$22,INFORMATION!$D$23,INFORMATION!$D$24),\"\")","v":""},0,0.1,""]
[null,"Rec09","Les indicateurs de performances de management des risques sont déterminés, cohérents et conformes à ceux du projet et des organisations concernées.",null,"",{"$f":"IF(D21=\"\",\"\",CHOOSE($M21,\"Libellé du critère quand il sera choisi\",INFORMATION!$A$20,INFORMATION!$A$21,INFORMATION!$A$22,INFORMATION!$A$23,\"Non concerné\"))","v":""},"Vous pouvez commenter",null,null,null,9,0,{"$f":"IFERROR((VLOOKUP($D21,INFORMATION!$M$20:$N$24,2,FALSE)),\"\")","v":""},{"$f":"IFERROR(CHOOSE($M21,\"\",INFORMATION!$D$20,INFORMATION!$D$21,INFORMATION!$D$22,INFORMATION!$D$23,INFORMATION!$D$24),\"\")","v":""},0,0.1,""]
[null,"Rec10","Les progrès et les écarts par rapport au plan de management des risques sont mesurés régulièrement.",null,"",{"$f":"IF(D22=\"\",\"\",CHOOSE($M22,\"Libellé du critère quand il sera choisi\",INFORMATION!$A$20,INFORMATION!$A$21,INFORMATION!$A$22,INFORMATION!$A$23,\"Non concerné\"))","v":""},"Vous pouvez commenter",null,null,null,10,0,{"$f":"IFERROR((VLOOKUP($D22,INFORMATION!$M$20:$N$24,2,FALSE)),\"\")","v":""},{"$f":"IFERROR(CHOOSE($M22,\"\",INFORMATION!$D$20,INFORMATION!$D$21,INFORMATION!$D$22,INFORMATION!$D$23,INFORMATION!$D$24),\"\")","v":""},{"$f":"IF(L22=\"Non Concerné\",1,0)","v":0},0.1,""]
[null,"Gr2","Prise des Décisions",{"$f":"R23","v":"Niveau non concerné"},{"$f":"IF($D23=\"Niveau non concerné\",\"NC\",$Q23)","v":"NC"},{"$f":"IFERROR(IF(E23=INFORMATION!$G$24,INFORMATION!$H$24,IF(E23<=INFORMATION!$F$20,INFORMATION!$H$20,IF(E23<=INFORMATION!$F$21,INFORMATION!$H$21,IF(E23<=INFORMATION!$F$22,INFORMATION!$H$22,INFORMATION!$H$23)))),\"\")","v":"Niveau non concerné"},null,null,null,null,{"$f":"IF(L23=\"Sous-Article\",\"\",IF(K22=\"\",K21+1,K22+1))","v":""},"Sous-Article",null,"vérifier si Somme = 1 =>  ",null,{"$f":"SUM(P24:P26)","v":1},{"$f":"IFERROR(SUM(Q24:Q26),\"\")","v":0},{"$f":"IFERROR(IF(Q23=INFORMATION!$F$24,INFORMATION!$H$24,IF(Q23<=INFORMATION!$F$20,INFORMATION!$G$20,IF(Q23<=INFORMATION!$F$21,INFORMATION!$G$21,IF(Q23<=INFORMATION!$F$22,INFORMATION!$G$22,INFORMATION!$G$23)))),\"\")","v":"Niveau non concerné"},{"$f":"IF(R23=\"Niveau non concerné\",1,0)","v":1},{"$f":"IF(R23=\"Niveau non concerné\",0,1/COUNTIF($S$12:$S$33,\"=0\"))","v":0},{"$f":"T23*Q23","v":0}]
[null,"Rec11","La prise des décisions concernant le projet tient compte des risques.",null,{"$f":"IF($D24=\"Non concerné\",\"NC\",$N24)","v":""},{"$f":"IF(D24=\"\",\"\",CHOOSE($M24,\"Libellé du critère quand il sera choisi\",INFORMATION!$A$20,INFORMATION!$A$21,INFORMATION!$A$22,INFORMATION!$A$23,\"Non concerné\"))","v":""},"Vous pouvez commenter",null,null,null,{"$f":"IF(L24=\"Sous-Article\",\"\",IF(K23=\"\",K22+1,K23+1))","v":11},{"$f":"D24","v":0},{"$f":"IFERROR((VLOOKUP($D24,INFORMATION!$M$20:$N$24,2,FALSE)),\"\")","v":""},{"$f":"IFERROR(CHOOSE($M24,\"\",INFORMATION!$D$20,INFORMATION!$D$21,INFORMATION!$D$22,INFORMATION!$D$23,INFORMATION!$D$24),\"\")","v":""},{"$f":"IF(L24=\"Non Concerné\",1,0)","v":0},{"$f":"IF(L24=\"Non Concerné\",0,1/COUNTIF($O$24:$O$26,\"=0\"))","v":0.33333333333333331},{"$f":"IFERROR(N24*P24,\"\")","v":""}]
[null,"Rec12","Les décisions respectent les obligations légales, réglementaires et autres exigences.",null,"",{"$f":"IF(D25=\"\",\"\",CHOOSE($M25,\"Libellé du critère quand il sera choisi\",INFORMATION!$A$20,INFORMATION!$A$21,INFORMATION!$A$22,INFORMATION!$A$23,\"Non concerné\"))","v":""},"Vous pouvez commenter",null,null,null,{"$f":"IF(L25=\"Sous-Article\",\"\",IF(K24=\"\",K23+1,K24+1))","v":12},{"$f":"D25","v":0},{"$f":"IFERROR((VLOOKUP($D25,INFORMATION!$M$20:$N$24,2,FALSE)),\"\")","v":""},{"$f":"IFERROR(CHOOSE($M25,\"\",INFORMATION!$D$20,INFORMATION!$D$21,INFORMATION!$D$22,INFORMATION!$D$23,INFORMATION!$D$24),\"\")","v":""},0,{"$f":"IF(L25=\"Non Concerné\",0,1/COUNTIF($O$24:$O$26,\"=0\"))","v":0.33333333333333331},{"$f":"IFERROR(N25*P25,\"\")","v":""}]
[null,"Rec13","Les décisions concernant la création des enregistrements tiennent compte de tous les éléments.",null,"",{"$f":"IF(D26=\"\",\"\",CHOOSE($M26,\"Libellé du critère quand il sera choisi\",INFORMATION!$A$20,INFORMATION!$A$21,INFORMATION!$A$22,INFORMATION!$A$23,\"Non concerné\"))","v":""},"Vous pouvez commenter",null,null,null,13,{"$f":"D26","v":0},{"$f":"IFERROR((VLOOKUP($D26,INFORMATION!$M$20:$N$24,2,FALSE)),\"\")","v":""},{"$f":"IFERROR(CHOOSE($M26,\"\",INFORMATION!$D$20,INFORMATION!$D$21,INFORMATION!$D$22,INFORMATION!$D$23,INFORMATION!$D$24),\"\")","v":""},0,{"$f":"IF(L26=\"Non Concerné\",0,1/COUNTIF($O$24:$O$26,\"=0\"))","v":0.33333333333333331},""]
[null,"Gr3","Identification des Responsabilités",{"$f":"R27","v":"Niveau non concerné"},{"$f":"IF($D27=\"Niveau non concerné\",\"NC\",$Q27)","v":"NC"},{"$f":"IFERROR(IF(E27=INFORMATION!$G$24,INFORMATION!$H$24,IF(E27<=INFORMATION!$F$20,INFORMATION!$H$20,IF(E27<=INFORMATION!$F$21,INFORMATION!$H$21,IF(E27<=INFORMATION!$F$22,INFORMATION!$H$22,INFORMATION!$H$23)))),\"\")","v":"Niveau non concerné"},null,null,null,null,"","Sous-Article",null,"vérifier si Somme = 1 =>  ",null,{"$f":"SUM(P28:P32)","v":1},{"$f":"IFERROR(SUM(Q28:Q32),\"\")","v":0},{"$f":"IFERROR(IF(Q27=INFORMATION!$F$24,INFORMATION!$H$24,IF(Q27<=INFORMATION!$F$20,INFORMATION!$G$20,IF(Q27<=INFORMATION!$F$21,INFORMATION!$G$21,IF(Q27<=INFORMATION!$F$22,INFORMATION!$G$22,INFORMATION!$G$23)))),\"\")","v":"Niveau non concerné"},{"$f":"IF(R27=\"Niveau non concerné\",1,0)","v":1},{"$f":"IF(R27=\"Niveau non concerné\",0,1/COUNTIF($S$12:$S$33,\"=0\"))","v":0},{"$f":"T27*Q27","v":0}]
[null,"Rec14","Les organisations engagent leur responsabilité, leur autorité et leurs compétences en matière de management des risques tout au long du projet, et dans toutes ses phases.",null,{"$f":"IF($D28=\"Non concerné\",\"NC\",$N28)","v":""},{"$f":"IF(D28=\"\",\"\",CHOOSE($M28,\"Libellé du critère quand il sera choisi\",INFORMATION!$A$20,INFORMATION!$A$21,INFORMATION!$A$22,INFORMATION!$A$23,\"Non concerné\"))","v":""},"Vous pouvez commenter",null,null,null,14,{"$f":"D28","v":0},{"$f":"IFERROR((VLOOKUP($D28,INFORMATION!$M$20:$N$24,2,FALSE)),\"\")","v":""},{"$f":"IFERROR(CHOOSE($M28,\"\",INFORMATION!$D$20,INFORMATION!$D$21,INFORMATION!$D$22,INFORMATION!$D$23,INFORMATION!$D$24),\"\")","v":""},{"$f":"IF(L28=\"Non Concerné\",1,0)","v":0},{"$f":"IF(L28=\"Non Concerné\",0,1/COUNTIF($O$28:$O$32,\"=0\"))","v":0.2},{"$f":"IFERROR(N28*P28,\"\")","v":""}]
[null,"Rec15","La responsabilité du management des risques liés à un projet et les interfaces avec d’autres fonctions sont définies, documentées et surveillées.",null,"",{"$f":"IF(D29=\"\",\"\",CHOOSE($M29,\"Libellé du critère quand il sera choisi\",INFORMATION!$A$20,INFORMATION!$A$21,INFORMATION!$A$22,INFORMATION!$A$23,\"Non concerné\"))","v":""},"Vous pouvez commenter",null,null,null,15,{"$f":"D29","v":0},{"$f":"IFERROR((VLOOKUP($D29,INFORMATION!$M$20:$N$24,2,FALSE)),\"\")","v":""},{"$f":"IFERROR(CHOOSE($M29,\"\",INFORMATION!$D$20,INFORMATION!$D$21,INFORMATION!$D$22,INFORMATION!$D$23,INFORMATION!$D$24),\"\")","v":""},0,{"$f":"IF(L29=\"Non Concerné\",0,1/COUNTIF($O$28:$O$32,\"=0\"))","v":0.2},""]
[null,"Rec16","La perception des parties prenantes est identifiée, enregistrée et prise en compte dans le processus de prise de décision.",null,"",{"$f":"IF(D30=\"\",\"\",CHOOSE($M30,\"Libellé du critère quand il sera choisi\",INFORMATION!$A$20,INFORMATION!$A$21,INFORMATION!$A$22,INFORMATION!$A$23,\"Non concerné\"))","v":""},"Vous pouvez commenter",null,null,null,16,{"$f":"D30","v":0},{"$f":"IFERROR((VLOOKUP($D30,INFORMATION!$M$20:$N$24,2,FALSE)),\"\")","v":""},{"$f":"IFERROR(CHOOSE($M30,\"\",INFORMATION!$D$20,INFORMATION!$D$21,INFORMATION!$D$22,INFORMATION!$D$23,INFORMATION!$D$24),\"\")","v":""},0,0.2,""]
[null,"Rec17","Les parties prenantes participent dans l’échange efficace d’informations et l'identification des risques relatives au projet entre elles.",null,"",{"$f":"IF(D31=\"\",\"\",CHOOSE($M31,\"Libellé du critère quand il sera choisi\",INFORMATION!$A$20,INFORMATION!$A$21,INFORMATION!$A$22,INFORMATION!$A$23,\"Non concerné\"))","v":""},"Vous pouvez commenter",null,null,null,17,{"$f":"D31","v":0},{"$f":"IFERROR((VLOOKUP($D31,INFORMATION!$M$20:$N$24,2,FALSE)),\"\")","v":""},{"$f":"IFERROR(CHOOSE($M31,\"\",INFORMATION!$D$20,INFORMATION!$D$21,INFORMATION!$D$22,INFORMATION!$D$23,INFORMATION!$D$24),\"\")","v":""},0,0.2,""]
[null,"Rec18","Les parties prenantes sont impliquées dans le processus d’identification des risques.",null,"",{"$f":"IF(D32=\"\",\"\",CHOOSE($M32,\"Libellé du critère quand il sera choisi\",INFORMATION!$A$20,INFORMATION!$A$21,INFORMATION!$A$22,INFORMATION!$A$23,\"Non concerné\"))","v":""},"Vous pouvez commenter",null,null,null,18,{"$f":"D32","v":0},{"$f":"IFERROR((VLOOKUP($D32,INFORMATION!$M$20:$N$24,2,FALSE)),\"\")","v":""},{"$f":"IFERROR(CHOOSE($M32,\"\",INFORMATION!$D$20,INFORMATION!$D$21,INFORMATION!$D$22,INFORMATION!$D$23,INFORMATION!$D$24),\"\")","v":""},0,0.2,""]
[null,"Gr4","Compréhension du Contexte",{"$f":"R33","v":"Niveau non concerné"},{"$f":"IF($D33=\"Niveau non concerné\",\"NC\",$Q33)","v":"NC"},{"$f":"IFERROR(IF(E33=INFORMATION!$G$24,INFORMATION!$H$24,IF(E33<=INFORMATION!$F$20,INFORMATION!$H$20,IF(E33<=INFORMATION!$F$21,INFORMATION!$H$21,IF(E33<=INFORMATION!$F$22,INFORMATION!$H$22,INFORMATION!$H$23)))),\"\")","v":"Niveau non concerné"},null,null,null,null,"","Sous-Article",null,"vérifier si Somme = 1 =>  ",null,{"$f":"SUM(P34)","v":1},{"$f":"IFERROR(SUM(Q34),\"\")","v":0},{"$f":"IFERROR(IF(Q33=INFORMATION!$F$24,INFORMATION!$H$24,IF(Q33<=INFORMATION!$F$20,INFORMATION!$G$20,IF(Q33<=INFORMATION!$F$21,INFORMATION!$G$21,IF(Q33<=INFORMATION!$F$22,INFORMATION!$G$22,INFORMATION!$G$23)))),\"\")","v":"Niveau non concerné"},{"$f":"IF(R33=\"Niveau non concerné\",1,0)","v":1},{"$f":"IF(R33=\"Niveau non concerné\",0,1/COUNTIF($S$12:$S$33,\"=0\"))","v":0},{"$f":"T33*Q33","v":0}]
[null,"Rec19","Le contexte du projet est compris, établi et identifié dans toutes les étapes du processus de management des risques.",null,{"$f":"IF($D34=\"Non concerné\",\"NC\",$N34)","v":""},{"$f":"IF(D34=\"\",\"\",CHOOSE($M34,\"Libellé du critère quand il sera choisi\",INFORMATION!$A$20,INFORMATION!$A$21,INFORMATION!$A$22,INFORMATION!$A$23,\"Non concerné\"))","v":""},"Vous pouvez commenter",null,null,null,19,{"$f":"D34","v":0},{"$f":"IFERROR((VLOOKUP($D34,INFORMATION!$M$20:$N$24,2,FALSE)),\"\")","v":""},{"$f":"IFERROR(CHOOSE($M34,\"\",INFORMATION!$D$20,INFORMATION!$D$21,INFORMATION!$D$22,INFORMATION!$D$23,INFORMATION!$D$24),\"\")","v":""},0,{"$f":"IF(L34=\"Non Concerné\",0,1/COUNTIF($O$34:$O$34,\"=0\"))","v":1},{"$f":"IFERROR(N34*P34,\"\")","v":""}]
[null,"P2","Processus Réalisation",{"$f":"V35","v":"Niveau non concerné"},{"$f":"IF($D35=\"Niveau non concerné\",\"NC\",U35)","v":"NC"},{"$f":"IFERROR(IF(E35=INFORMATION!$G$24,INFORMATION!$H$24,IF(E35<=INFORMATION!$F$20,INFORMATION!$H$20,IF(E35<=INFORMATION!$F$21,INFORMATION!$H$21,IF(E35<=INFORMATION!$F$22,INFORMATION!$H$22,INFORMATION!$H$23)))),\"\")","v":"Niveau non concerné"},null,null,null,null,null,"Article",null,null,null,null,null,"vérifier si Somme = 1 =>  ",null,{"$f":"SUM(T36:T52)","v":0},{"$f":"IFERROR(SUM(U36:U52),\"\")","v":0},{"$f":"IFERROR(IF(U35=INFORMATION!$D$24,INFORMATION!$H$24,IF(U35<=INFORMATION!$F$20,INFORMATION!$G$20,IF(U35<=INFORMATION!$F$21,INFORMATION!$G$21,IF(U35<=INFORMATION!$F$22,INFORMATION!$G$22,INFORMATION!$G$23)))),\"\")","v":"Niveau non concerné"},{"$f":"1/3","v":0.33333333333333331},{"$f":"U35*W35","v":0}]
[null,"Gr5","Identification des Risques",{"$f":"R36","v":"Niveau non concerné"},{"$f":"IF($D36=\"Niveau non concerné\",\"NC\",$Q36)","v":"NC"},{"$f":"IFERROR(IF(E36=INFORMATION!$G$24,INFORMATION!$H$24,IF(E36<=INFORMATION!$F$20,INFORMATION!$H$20,IF(E36<=INFORMATION!$F$21,INFORMATION!$H$21,IF(E36<=INFORMATION!$F$22,INFORMATION!$H$22,INFORMATION!$H$23)))),\"\")","v":"Niveau non concerné"},null,null,null,null,"Nb critères","Sous-Article",null,"vérifier si Somme = 1 =>  ",null,{"$f":"SUM(P37:P39)","v":1},{"$f":"IFERROR(SUM(Q37:Q39),\"\")","v":0},{"$f":"IFERROR(IF(Q36=INFORMATION!$F$24,INFORMATION!$H$24,IF(Q36<=INFORMATION!$F$20,INFORMATION!$G$20,IF(Q36<=INFORMATION!$F$21,INFORMATION!$G$21,IF(Q36<=INFORMATION!$F$22,INFORMATION!$G$22,INFORMATION!$G$23)))),\"\")","v":"Niveau non concerné"},{"$f":"IF(R36=\"Niveau non concerné\",1,0)","v":1},{"$f":"IF(R36=\"Niveau non concerné\",0,1/COUNTIF($S$36:$S$48,\"=0\"))","v":0},{"$f":"T36*Q36","v":0}]
[null,"Rec20","Cette étape prend en compte l'origine, les causes et conséquences pour chacun des risques identifiés.",null,{"$f":"IF($D37=\"Non concerné\",\"NC\",$N37)","v":""},{"$f":"IF(D37=\"\",\"\",CHOOSE($M37,\"Libellé du critère quand il sera choisi\",INFORMATION!$A$20,INFORMATION!$A$21,INFORMATION!$A$22,INFORMATION!$A$23,\"Non concerné\"))","v":""},"Vous pouvez commenter",null,null,null,{"$f":"K34+1","v":20},{"$f":"D37","v":0},{"$f":"IFERROR((VLOOKUP($D37,INFORMATION!$M$20:$N$24,2,FALSE)),\"\")","v":""},{"$f":"IFERROR(CHOOSE($M37,\"\",INFORMATION!$D$20,INFORMATION!$D$21,INFORMATION!$D$22,INFORMATION!$D$23,INFORMATION!$D$24),\"\")","v":""},{"$f":"IF(L37=\"Non Concerné\",1,0)","v":0},{"$f":"IF(L37=\"Non Concerné\",0,1/COUNTIF($O$37:$O$39,\"=0\"))","v":0.33333333333333331},{"$f":"IFERROR(N37*P37,\"\")","v":""}]
[null,"Rec21","L'identification des risques tient compte des phases du cycle de vie du projet.",null,"",{"$f":"IF(D38=\"\",\"\",CHOOSE($M38,\"Libellé du critère quand il sera choisi\",INFORMATION!$A$20,INFORMATION!$A$21,INFORMATION!$A$22,INFORMATION!$A$23,\"Non concerné\"))","v":""},"Vous pouvez commenter",null,null,null,{"$f":"IF(L38=\"Sous-Article\",\"\",IF(K37=\"\",K36+1,K37+1))","v":21},{"$f":"D38","v":0},{"$f":"IFERROR((VLOOKUP($D38,INFORMATION!$M$20:$N$24,2,FALSE)),\"\")","v":""},{"$f":"IFERROR(CHOOSE($M38,\"\",INFORMATION!$D$20,INFORMATION!$D$21,INFORMATION!$D$22,INFORMATION!$D$23,INFORMATION!$D$24),\"\")","v":""},0,{"$f":"IF(L38=\"Non Concerné\",0,1/COUNTIF($O$37:$O$39,\"=0\"))","v":0.33333333333333331},{"$f":"IFERROR(N38*P38,\"\")","v":""}]
[null,"Rec22","L’identification des risques fait appel à toutes les sources d'information disponibles.",null,"",{"$f":"IF(D39=\"\",\"\",CHOOSE($M39,\"Libellé du critère quand il sera choisi\",INFORMATION!$A$20,INFORMATION!$A$21,INFORMATION!$A$22,INFORMATION!$A$23,\"Non concerné\"))","v":""},"Vous pouvez commenter",null,null,null,22,{"$f":"D39","v":0},{"$f":"IFERROR((VLOOKUP($D39,INFORMATION!$M$20:$N$24,2,FALSE)),\"\")","v":""},{"$f":"IFERROR(CHOOSE($M39,\"\",INFORMATION!$D$20,INFORMATION!$D$21,INFORMATION!$D$22,INFORMATION!$D$23,INFORMATION!$D$24),\"\")","v":""},0,{"$f":"IF(L39=\"Non Concerné\",0,1/COUNTIF($O$37:$O$39,\"=0\"))","v":0.33333333333333331},""]
[null,"Gr6","Caractérisation des Risques",{"$f":"R40","v":"Niveau non concerné"},{"$f":"IF($D40=\"Niveau non concerné\",\"NC\",$Q40)","v":"NC"},{"$f":"IFERROR(IF(E40=INFORMATION!$G$24,INFORMATION!$H$24,IF(E40<=INFORMATION!$F$20,INFORMATION!$H$20,IF(E40<=INFORMATION!$F$21,INFORMATION!$H$21,IF(E40<=INFORMATION!$F$22,INFORMATION!$H$22,INFORMATION!$H$23)))),\"\")","v":"Niveau non concerné"},null,null,null,null,"Nb critères","Sous-Article",null,"vérifier si Somme = 1 =>  ",null,{"$f":"SUM(P41:P44)","v":1},{"$f":"IFERROR(SUM(Q41:Q44),\"\")","v":0},{"$f":"IFERROR(IF(Q40=INFORMATION!$F$24,INFORMATION!$H$24,IF(Q40<=INFORMATION!$F$20,INFORMATION!$G$20,IF(Q40<=INFORMATION!$F$21,INFORMATION!$G$21,IF(Q40<=INFORMATION!$F$22,INFORMATION!$G$22,INFORMATION!$G$23)))),\"\")","v":"Niveau non concerné"},{"$f":"IF(R40=\"Niveau non concerné\",1,0)","v":1},{"$f":"IF(R40=\"Niveau non concerné\",0,1/COUNTIF($S$36:$S$48,\"=0\"))","v":0},{"$f":"T40*Q40","v":0}]
[null,"Rec23","Les nouveaux risques sont pris en compte dans la mise en œuvre des actions de traitement de risque.",null,{"$f":"IF($D41=\"Non concerné\",\"NC\",$N41)","v":""},{"$f":"IF(D41=\"\",\"\",CHOOSE($M41,\"Libellé du critère quand il sera choisi\",INFORMATION!$A$20,INFORMATION!$A$21,INFORMATION!$A$22,INFORMATION!$A$23,\"Non concerné\"))","v":""},"Vous pouvez commenter",null,null,null,{"$f":"K39+1","v":23},{"$f":"D41","v":0},{"$f":"IFERROR((VLOOKUP($D41,INFORMATION!$M$20:$N$24,2,FALSE)),\"\")","v":""},{"$f":"IFERROR(CHOOSE($M41,\"\",INFORMATION!$D$20,INFORMATION!$D$21,INFORMATION!$D$22,INFORMATION!$D$23,INFORMATION!$D$24),\"\")","v":""},{"$f":"IF(L41=\"Non Concerné\",1,0)","v":0},{"$f":"IF(L41=\"Non Concerné\",0,1/COUNTIF($O$41:$O$44,\"=0\"))","v":0.25},{"$f":"IFERROR(N41*P41,\"\")","v":""}]
[null,"Rec24","Les critères de risque sont définis, revus et cohérents avec la politique de management des risques.",null,"",{"$f":"IF(D42=\"\",\"\",CHOOSE($M42,\"Libellé du critère quand il sera choisi\",INFORMATION!$A$20,INFORMATION!$A$21,INFORMATION!$A$22,INFORMATION!$A$23,\"Non concerné\"))","v":""},"Vous pouvez commenter",null,null,null,{"$f":"IF(L42=\"Sous-Article\",\"\",IF(K41=\"\",K40+1,K41+1))","v":24},{"$f":"D42","v":0},{"$f":"IFERROR((VLOOKUP($D42,INFORMATION!$M$20:$N$24,2,FALSE)),\"\")","v":""},{"$f":"IFERROR(CHOOSE($M42,\"\",INFORMATION!$D$20,INFORMATION!$D$21,INFORMATION!$D$22,INFORMATION!$D$23,INFORMATION!$D$24),\"\")","v":""},0,{"$f":"IF(L42=\"Non Concerné\",0,1/COUNTIF($O$41:$O$44,\"=0\"))","v":0.25},""]
[null,"Rec25","L'identification des risques est un processus continu tout au long de l’avancement du projet.",null,"",{"$f":"IF(D43=\"\",\"\",CHOOSE($M43,\"Libellé du critère quand il sera choisi\",INFORMATION!$A$20,INFORMATION!$A$21,INFORMATION!$A$22,INFORMATION!$A$23,\"Non concerné\"))","v":""},"Vous pouvez commenter",null,null,null,25,{"$f":"D43","v":0},{"$f":"IFERROR((VLOOKUP($D43,INFORMATION!$M$20:$N$24,2,FALSE)),\"\")","v":""},{"$f":"IFERROR(CHOOSE($M43,\"\",INFORMATION!$D$20,INFORMATION!$D$21,INFORMATION!$D$22,INFORMATION!$D$23,INFORMATION!$D$24),\"\")","v":""},0,0.25,{"$f":"IFERROR(N43*P43,\"\")","v":""}]
[null,"Rec26","Les causes, les conséquences, la probabilité et la criticité sont prises en compte lors de la définition des critères de risque.",null,"",{"$f":"IF(D44=\"\",\"\",CHOOSE($M44,\"Libellé du critère quand il sera choisi\",INFORMATION!$A$20,INFORMATION!$A$21,INFORMATION!$A$22,INFORMATION!$A$23,\"Non concerné\"))","v":""},"Vous pouvez commenter",null,null,null,26,{"$f":"D44","v":0},{"$f":"IFERROR((VLOOKUP($D44,INFORMATION!$M$20:$N$24,2,FALSE)),\"\")","v":""},{"$f":"IFERROR(CHOOSE($M44,\"\",INFORMATION!$D$20,INFORMATION!$D$21,INFORMATION!$D$22,INFORMATION!$D$23,INFORMATION!$D$24),\"\")","v":""},0,0.25,""]
[null,"Gr7","Elaboration d'un Plan de Management des Risques",{"$f":"R45","v":"Niveau non concerné"},{"$f":"IF($D45=\"Niveau non concerné\",\"NC\",$Q45)","v":"NC"},{"$f":"IFERROR(IF(E45=INFORMATION!$G$24,INFORMATION!$H$24,IF(E45<=INFORMATION!$F$20,INFORMATION!$H$20,IF(E45<=INFORMATION!$F$21,INFORMATION!$H$21,IF(E45<=INFORMATION!$F$22,INFORMATION!$H$22,INFORMATION!$H$23)))),\"\")","v":"Niveau non concerné"},null,null,null,null,"Nb critères","Sous-Article",null,"vérifier si Somme = 1 =>  ",null,{"$f":"SUM(P46:P47)","v":1},{"$f":"IFERROR(SUM(Q46:Q47),\"\")","v":0},{"$f":"IFERROR(IF(Q45=INFORMATION!$F$24,INFORMATION!$H$24,IF(Q45<=INFORMATION!$F$20,INFORMATION!$G$20,IF(Q45<=INFORMATION!$F$21,INFORMATION!$G$21,IF(Q45<=INFORMATION!$F$22,INFORMATION!$G$22,INFORMATION!$G$23)))),\"\")","v":"Niveau non concerné"},{"$f":"IF(R45=\"Niveau non concerné\",1,0)","v":1},{"$f":"IF(R45=\"Niveau non concerné\",0,1/COUNTIF($S$36:$S$48,\"=0\"))","v":0},{"$f":"T45*Q45","v":0}]
[null,"Rec27","Les plans de traitement des risques sont intégrés au plan de gestion du projet et surveillés lors des étapes de contrôle.",null,{"$f":"IF($D46=\"Non concerné\",\"NC\",$N46)","v":""},{"$f":"IF(D46=\"\",\"\",CHOOSE($M46,\"Libellé du critère quand il sera choisi\",INFORMATION!$A$20,INFORMATION!$A$21,INFORMATION!$A$22,INFORMATION!$A$23,\"Non concerné\"))","v":""},"Vous pouvez commenter",null,null,null,{"$f":"K44+1","v":27},{"$f":"D46","v":0},{"$f":"IFERROR((VLOOKUP($D46,INFORMATION!$M$20:$N$24,2,FALSE)),\"\")","v":""},{"$f":"IFERROR(CHOOSE($M46,\"\",INFORMATION!$D$20,INFORMATION!$D$21,INFORMATION!$D$22,INFORMATION!$D$23,INFORMATION!$D$24),\"\")","v":""},{"$f":"IF(L46=\"Non Concerné\",1,0)","v":0},{"$f":"IF(L46=\"Non Concerné\",0,1/COUNTIF($O$46:$O$47,\"=0\"))","v":0.5},""]
[null,"Rec28","La politique et le plan de management des risques sont définis, révisés et mis à jour régulièrement pour rester adaptés à chaque phase du projet.",null,"",{"$f":"IF(D47=\"\",\"\",CHOOSE($M47,\"Libellé du critère quand il sera choisi\",INFORMATION!$A$20,INFORMATION!$A$21,INFORMATION!$A$22,INFORMATION!$A$23,\"Non concerné\"))","v":""},"Vous pouvez commenter",null,null,null,{"$f":"K46+1","v":28},{"$f":"D47","v":0},{"$f":"IFERROR((VLOOKUP($D47,INFORMATION!$M$20:$N$24,2,FALSE)),\"\")","v":""},{"$f":"IFERROR(CHOOSE($M47,\"\",INFORMATION!$D$20,INFORMATION!$D$21,INFORMATION!$D$22,INFORMATION!$D$23,INFORMATION!$D$24),\"\")","v":""},0,{"$f":"IF(L47=\"Non Concerné\",0,1/COUNTIF($O$46:$O$47,\"=0\"))","v":0.5},""]
[null,"Gr8","Elaboration d'un Processus de Management des Risques",{"$f":"R48","v":"Niveau non concerné"},{"$f":"IF($D48=\"Niveau non concerné\",\"NC\",$Q48)","v":"NC"},{"$f":"IFERROR(IF(E48=INFORMATION!$G$24,INFORMATION!$H$24,IF(E48<=INFORMATION!$F$20,INFORMATION!$H$20,IF(E48<=INFORMATION!$F$21,INFORMATION!$H$21,IF(E48<=INFORMATION!$F$22,INFORMATION!$H$22,INFORMATION!$H$23)))),\"\")","v":"Niveau non concerné"},null,null,null,null,"Nb critères","Sous-Article",null,"vérifier si Somme = 1 =>  ",null,{"$f":"SUM(P49:P52)","v":1},{"$f":"IFERROR(SUM(Q49:Q52),\"\")","v":0},{"$f":"IFERROR(IF(Q48=INFORMATION!$F$24,INFORMATION!$H$24,IF(Q48<=INFORMATION!$F$20,INFORMATION!$G$20,IF(Q48<=INFORMATION!$F$21,INFORMATION!$G$21,IF(Q48<=INFORMATION!$F$22,INFORMATION!$G$22,INFORMATION!$G$23)))),\"\")","v":"Niveau non concerné"},{"$f":"IF(R48=\"Niveau non concerné\",1,0)","v":1},{"$f":"IF(R48=\"Niveau non concerné\",0,1/COUNTIF($S$36:$S$48,\"=0\"))","v":0},{"$f":"T48*Q48","v":0}]
[null,"Rec29","Le processus de management des risques est intégré, mis à jour régulièrement (amélioration continue) et appliqué dans le cadre de la gestion de projet.",null,{"$f":"IF($D49=\"Non concerné\",\"NC\",$N49)","v":""},{"$f":"IF(D49=\"\",\"\",CHOOSE($M49,\"Libellé du critère quand il sera choisi\",INFORMATION!$A$20,INFORMATION!$A$21,INFORMATION!$A$22,INFORMATION!$A$23,\"Non concerné\"))","v":""},"Vous pouvez commenter",null,null,null,{"$f":"K47+1","v":29},{"$f":"D49","v":0},{"$f":"IFERROR((VLOOKUP($D49,INFORMATION!$M$20:$N$24,2,FALSE)),\"\")","v":""},{"$f":"IFERROR(CHOOSE($M49,\"\",INFORMATION!$D$20,INFORMATION!$D$21,INFORMATION!$D$22,INFORMATION!$D$23,INFORMATION!$D$24),\"\")","v":""},{"$f":"IF(L49=\"Non Concerné\",1,0)","v":0},{"$f":"IF(L49=\"Non Concerné\",0,1/COUNTIF($O$49:$O$52,\"=0\"))","v":0.25},""]
[null,"Rec30","Le processus de management des risques est conforme aux cultures, processus, structures et stratégies des organisations.",null,"",{"$f":"IF(D50=\"\",\"\",CHOOSE($M50,\"Libellé du critère quand il sera choisi\",INFORMATION!$A$20,INFORMATION!$A$21,INFORMATION!$A$22,INFORMATION!$A$23,\"Non concerné\"))","v":""},"Vous pouvez commenter",null,null,null,{"$f":"K49+1","v":30},{"$f":"D50","v":0},{"$f":"IFERROR((VLOOKUP($D50,INFORMATION!$M$20:$N$24,2,FALSE)),\"\")","v":""},{"$f":"IFERROR(CHOOSE($M50,\"\",INFORMATION!$D$20,INFORMATION!$D$21,INFORMATION!$D$22,INFORMATION!$D$23,INFORMATION!$D$24),\"\")","v":""},0,{"$f":"IF(L50=\"Non Concerné\",0,1/COUNTIF($O$49:$O$52,\"=0\"))","v":0.25},""]
[null,"Rec31","Le processus de gestion de projet est organisé, structuré et contrôlé.",null,"",{"$f":"IF(D51=\"\",\"\",CHOOSE($M51,\"Libellé du critère quand il sera choisi\",INFORMATION!$A$20,INFORMATION!$A$21,INFORMATION!$A$22,INFORMATION!$A$23,\"Non concerné\"))","v":""},"Vous pouvez commenter",null,null,null,{"$f":"K50+1","v":31},{"$f":"D51","v":0},{"$f":"IFERROR((VLOOKUP($D51,INFORMATION!$M$20:$N$24,2,FALSE)),\"\")","v":""},{"$f":"IFERROR(CHOOSE($M51,\"\",INFORMATION!$D$20,INFORMATION!$D$21,INFORMATION!$D$22,INFORMATION!$D$23,INFORMATION!$D$24),\"\")","v":""},0,0.25,""]
[null,"Rec32","Le processus de management des risques est adapté à la gestion de projet dans leur contexte.",null,"",{"$f":"IF(D52=\"\",\"\",CHOOSE($M52,\"Libellé du critère quand il sera choisi\",INFORMATION!$A$20,INFORMATION!$A$21,INFORMATION!$A$22,INFORMATION!$A$23,\"Non concerné\"))","v":""},"Vous pouvez commenter",null,null,null,32,{"$f":"D52","v":0},{"$f":"IFERROR((VLOOKUP($D52,INFORMATION!$M$20:$N$24,2,FALSE)),\"\")","v":""},{"$f":"IFERROR(CHOOSE($M52,\"\",INFORMATION!$D$20,INFORMATION!$D$21,INFORMATION!$D$22,INFORMATION!$D$23,INFORMATION!$D$24),\"\")","v":""},0,0.25,""]
[null,"P3","Processus Support",{"$f":"V53","v":"Niveau non concerné"},{"$f":"IF($D53=\"Niveau non concerné\",\"NC\",U53)","v":"NC"},{"$f":"IFERROR(IF(E53=INFORMATION!$G$24,INFORMATION!$H$24,IF(E53<=INFORMATION!$F$20,INFORMATION!$H$20,IF(E53<=INFORMATION!$F$21,INFORMATION!$H$21,IF(E53<=INFORMATION!$F$22,INFORMATION!$H$22,INFORMATION!$H$23)))),\"\")","v":"Niveau non concerné"},null,null,null,null,null,"Article",null,null,null,null,null,"vérifier si Somme = 1 =>  ",null,{"$f":"SUM(T54:T72)","v":0},{"$f":"IFERROR(SUM(U54:U72),\"\")","v":0},{"$f":"IFERROR(IF(U53=INFORMATION!$D$24,INFORMATION!$H$24,IF(U53<=INFORMATION!$F$20,INFORMATION!$G$20,IF(U53<=INFORMATION!$F$21,INFORMATION!$G$21,IF(U53<=INFORMATION!$F$22,INFORMATION!$G$22,INFORMATION!$G$23)))),\"\")","v":"Niveau non concerné"},{"$f":"1/3","v":0.33333333333333331},{"$f":"U53*W53","v":0}]
[null,"Gr9","Elaboration des Documentations",{"$f":"R54","v":"Niveau non concerné"},{"$f":"IF($D54=\"Niveau non concerné\",\"NC\",$Q54)","v":"NC"},{"$f":"IFERROR(IF(E54=INFORMATION!$G$24,INFORMATION!$H$24,IF(E54<=INFORMATION!$F$20,INFORMATION!$H$20,IF(E54<=INFORMATION!$F$21,INFORMATION!$H$21,IF(E54<=INFORMATION!$F$22,INFORMATION!$H$22,INFORMATION!$H$23)))),\"\")","v":"Niveau non concerné"},null,null,null,null,"Nb critères","Sous-Article",null,"vérifier si Somme = 1 =>  ",null,{"$f":"SUM(P55:P61)","v":0.99999999999999978},{"$f":"IFERROR(SUM(Q55:Q61),\"\")","v":0},{"$f":"IFERROR(IF(Q54=INFORMATION!$F$24,INFORMATION!$H$24,IF(Q54<=INFORMATION!$F$20,INFORMATION!$G$20,IF(Q54<=INFORMATION!$F$21,INFORMATION!$G$21,IF(Q54<=INFORMATION!$F$22,INFORMATION!$G$22,INFORMATION!$G$23)))),\"\")","v":"Niveau non concerné"},{"$f":"IF(R54=\"Niveau non concerné\",1,0)","v":1},{"$f":"IF(R54=\"Niveau non concerné\",0,1/COUNTIF($S$54:$S$66,\"=0\"))","v":0},{"$f":"T54*Q54","v":0}]
[null,"Rec33","Les processus et procédures en matière de management des risques sont explicités, documentés et pris en compte.",null,{"$f":"IF($D55=\"Non concerné\",\"NC\",$N55)","v":""},{"$f":"IF(D55=\"\",\"\",CHOOSE($M55,\"Libellé du critère quand il sera choisi\",INFORMATION!$A$20,INFORMATION!$A$21,INFORMATION!$A$22,INFORMATION!$A$23,\"Non concerné\"))","v":""},"Vous pouvez commenter",null,null,null,{"$f":"K52+1","v":33},{"$f":"D55","v":0},{"$f":"IFERROR((VLOOKUP($D55,INFORMATION!$M$20:$N$24,2,FALSE)),\"\")","v":""},{"$f":"IFERROR(CHOOSE($M55,\"\",INFORMATION!$D$20,INFORMATION!$D$21,INFORMATION!$D$22,INFORMATION!$D$23,INFORMATION!$D$24),\"\")","v":""},{"$f":"IF(L55=\"Non Concerné\",1,0)","v":0},{"$f":"IF(L55=\"Non Concerné\",0,1/COUNTIF($O$55:$O$61,\"=0\"))","v":0.14285714285714285},{"$f":"IFERROR(N55*P55,\"\")","v":""}]
[null,"Rec34","Les données historiques appropriées sont incluses dans les informations pertinentes de management des risques.",null,"",{"$f":"IF(D56=\"\",\"\",CHOOSE($M56,\"Libellé du critère quand il sera choisi\",INFORMATION!$A$20,INFORMATION!$A$21,INFORMATION!$A$22,INFORMATION!$A$23,\"Non concerné\"))","v":""},"Vous pouvez commenter",null,null,null,{"$f":"K55+1","v":34},0,{"$f":"IFERROR((VLOOKUP($D56,INFORMATION!$M$20:$N$24,2,FALSE)),\"\")","v":""},{"$f":"IFERROR(CHOOSE($M56,\"\",INFORMATION!$D$20,INFORMATION!$D$21,INFORMATION!$D$22,INFORMATION!$D$23,INFORMATION!$D$24),\"\")","v":""},0,{"$f":"IF(L56=\"Non Concerné\",0,1/COUNTIF($O$55:$O$61,\"=0\"))","v":0.14285714285714285},""]
[null,"Rec35","Les informations sur le management des risques sont transmises et communiquées à tous les membres de l’équipe du projet.",null,"",{"$f":"IF(D57=\"\",\"\",CHOOSE($M57,\"Libellé du critère quand il sera choisi\",INFORMATION!$A$20,INFORMATION!$A$21,INFORMATION!$A$22,INFORMATION!$A$23,\"Non concerné\"))","v":""},"Vous pouvez commenter",null,null,null,{"$f":"K56+1","v":35},0,{"$f":"IFERROR((VLOOKUP($D57,INFORMATION!$M$20:$N$24,2,FALSE)),\"\")","v":""},{"$f":"IFERROR(CHOOSE($M57,\"\",INFORMATION!$D$20,INFORMATION!$D$21,INFORMATION!$D$22,INFORMATION!$D$23,INFORMATION!$D$24),\"\")","v":""},0,0.14285714285714285,""]
[null,"Rec36"," Le registre des risques est créé, documenté, revu et mis à jour tout au long du projet.",null,"",{"$f":"IF(D58=\"\",\"\",CHOOSE($M58,\"Libellé du critère quand il sera choisi\",INFORMATION!$A$20,INFORMATION!$A$21,INFORMATION!$A$22,INFORMATION!$A$23,\"Non concerné\"))","v":""},"Vous pouvez commenter",null,null,null,36,0,{"$f":"IFERROR((VLOOKUP($D58,INFORMATION!$M$20:$N$24,2,FALSE)),\"\")","v":""},{"$f":"IFERROR(CHOOSE($M58,\"\",INFORMATION!$D$20,INFORMATION!$D$21,INFORMATION!$D$22,INFORMATION!$D$23,INFORMATION!$D$24),\"\")","v":""},0,0.14285714285714285,""]
[null,"Rec37","La traçabilité des données est enregistrée jusqu’à leur origine.",null,"",{"$f":"IF(D59=\"\",\"\",CHOOSE($M59,\"Libellé du critère quand il sera choisi\",INFORMATION!$A$20,INFORMATION!$A$21,INFORMATION!$A$22,INFORMATION!$A$23,\"Non concerné\"))","v":""},"Vous pouvez commenter",null,null,null,37,0,{"$f":"IFERROR((VLOOKUP($D59,INFORMATION!$M$20:$N$24,2,FALSE)),\"\")","v":""},{"$f":"IFERROR(CHOOSE($M59,\"\",INFORMATION!$D$20,INFORMATION!$D$21,INFORMATION!$D$22,INFORMATION!$D$23,INFORMATION!$D$24),\"\")","v":""},0,0.14285714285714285,""]
[null,"Rec38","Le rapport de management des risques est établi, documenté et intégré à d'autres formes de rapport de gestion de projet.",null,"",{"$f":"IF(D60=\"\",\"\",CHOOSE($M60,\"Libellé du critère quand il sera choisi\",INFORMATION!$A$20,INFORMATION!$A$21,INFORMATION!$A$22,INFORMATION!$A$23,\"Non concerné\"))","v":""},"Vous pouvez commenter",null,null,null,38,0,{"$f":"IFERROR((VLOOKUP($D60,INFORMATION!$M$20:$N$24,2,FALSE)),\"\")","v":""},{"$f":"IFERROR(CHOOSE($M60,\"\",INFORMATION!$D$20,INFORMATION!$D$21,INFORMATION!$D$22,INFORMATION!$D$23,INFORMATION!$D$24),\"\")","v":""},0,0.14285714285714285,""]
[null,"Rec39","Les informations fournies dans les plans de traitement sont toutes identifiées.",null,"",{"$f":"IF(D61=\"\",\"\",CHOOSE($M61,\"Libellé du critère quand il sera choisi\",INFORMATION!$A$20,INFORMATION!$A$21,INFORMATION!$A$22,INFORMATION!$A$23,\"Non concerné\"))","v":""},"Vous pouvez commenter",null,null,null,39,0,{"$f":"IFERROR((VLOOKUP($D61,INFORMATION!$M$20:$N$24,2,FALSE)),\"\")","v":""},{"$f":"IFERROR(CHOOSE($M61,\"\",INFORMATION!$D$20,INFORMATION!$D$21,INFORMATION!$D$22,INFORMATION!$D$23,INFORMATION!$D$24),\"\")","v":""},0,0.14285714285714285,""]
[null,"Gr10","Allocation des Ressources ",{"$f":"R62","v":"Niveau non concerné"},{"$f":"IF($D62=\"Niveau non concerné\",\"NC\",$Q62)","v":"NC"},{"$f":"IFERROR(IF(E62=INFORMATION!$G$24,INFORMATION!$H$24,IF(E62<=INFORMATION!$F$20,INFORMATION!$H$20,IF(E62<=INFORMATION!$F$21,INFORMATION!$H$21,IF(E62<=INFORMATION!$F$22,INFORMATION!$H$22,INFORMATION!$H$23)))),\"\")","v":"Niveau non concerné"},null,null,null,null,"Nb critères","Sous-Article",null,"vérifier si Somme = 1 =>  ",null,{"$f":"SUM(P63:P65)","v":1},{"$f":"IFERROR(SUM(Q63:Q65),\"\")","v":0},{"$f":"IFERROR(IF(Q62=INFORMATION!$F$24,INFORMATION!$H$24,IF(Q62<=INFORMATION!$F$20,INFORMATION!$G$20,IF(Q62<=INFORMATION!$F$21,INFORMATION!$G$21,IF(Q62<=INFORMATION!$F$22,INFORMATION!$G$22,INFORMATION!$G$23)))),\"\")","v":"Niveau non concerné"},{"$f":"IF(R62=\"Niveau non concerné\",1,0)","v":1},{"$f":"IF(R62=\"Niveau non concerné\",0,1/COUNTIF($S$54:$S$66,\"=0\"))","v":0},{"$f":"T62*Q62","v":0}]
[null,"Rec40","Les ressources nécessaires, les responsabilités et autorités, ainsi que les enregistrements à conserver sont spécifiés.",null,{"$f":"IF($D63=\"Non concerné\",\"NC\",$N63)","v":""},{"$f":"IF(D63=\"\",\"\",CHOOSE($M63,\"Libellé du critère quand il sera choisi\",INFORMATION!$A$20,INFORMATION!$A$21,INFORMATION!$A$22,INFORMATION!$A$23,\"Non concerné\"))","v":""},"Vous pouvez commenter",null,null,null,{"$f":"K61+1","v":40},{"$f":"D63","v":0},{"$f":"IFERROR((VLOOKUP($D63,INFORMATION!$M$20:$N$24,2,FALSE)),\"\")","v":""},{"$f":"IFERROR(CHOOSE($M63,\"\",INFORMATION!$D$20,INFORMATION!$D$21,INFORMATION!$D$22,INFORMATION!$D$23,INFORMATION!$D$24),\"\")","v":""},{"$f":"IF(L63=\"Non Concerné\",1,0)","v":0},{"$f":"IF(L63=\"Non Concerné\",0,1/COUNTIF($O$63:$O$65,\"=0\"))","v":0.33333333333333331},{"$f":"IFERROR(N63*P63,\"\")","v":""}]
[null,"Rec41","Les ressources nécessaires au management des risques liés à un projet sont définies, disponibles et prises en compte.",null,"",{"$f":"IF(D64=\"\",\"\",CHOOSE($M64,\"Libellé du critère quand il sera choisi\",INFORMATION!$A$20,INFORMATION!$A$21,INFORMATION!$A$22,INFORMATION!$A$23,\"Non concerné\"))","v":""},"Vous pouvez commenter",null,null,null,{"$f":"K63+1","v":41},{"$f":"D64","v":0},{"$f":"IFERROR((VLOOKUP($D64,INFORMATION!$M$20:$N$24,2,FALSE)),\"\")","v":""},{"$f":"IFERROR(CHOOSE($M64,\"\",INFORMATION!$D$20,INFORMATION!$D$21,INFORMATION!$D$22,INFORMATION!$D$23,INFORMATION!$D$24),\"\")","v":""},0,{"$f":"IF(L64=\"Non Concerné\",0,1/COUNTIF($O$63:$O$65,\"=0\"))","v":0.33333333333333331},""]
[null,"Rec42","Les coûts de management des risques sont tenus en compte.",null,"",{"$f":"IF(D65=\"\",\"\",CHOOSE($M65,\"Libellé du critère quand il sera choisi\",INFORMATION!$A$20,INFORMATION!$A$21,INFORMATION!$A$22,INFORMATION!$A$23,\"Non concerné\"))","v":""},"Vous pouvez commenter",null,null,null,{"$f":"K64+1","v":42},{"$f":"D65","v":0},{"$f":"IFERROR((VLOOKUP($D65,INFORMATION!$M$20:$N$24,2,FALSE)),\"\")","v":""},{"$f":"IFERROR(CHOOSE($M65,\"\",INFORMATION!$D$20,INFORMATION!$D$21,INFORMATION!$D$22,INFORMATION!$D$23,INFORMATION!$D$24),\"\")","v":""},0,{"$f":"IF(L65=\"Non Concerné\",0,1/COUNTIF($O$63:$O$65,\"=0\"))","v":0.33333333333333331},""]
[null,"Gr11","Cadre Organisationnel",{"$f":"R66","v":"Niveau non concerné"},{"$f":"IF($D66=\"Niveau non concerné\",\"NC\",$Q66)","v":"NC"},{"$f":"IFERROR(IF(E66=INFORMATION!$G$24,INFORMATION!$H$24,IF(E66<=INFORMATION!$F$20,INFORMATION!$H$20,IF(E66<=INFORMATION!$F$21,INFORMATION!$H$21,IF(E66<=INFORMATION!$F$22,INFORMATION!$H$22,INFORMATION!$H$23)))),\"\")","v":"Niveau non concerné"},null,null,null,null,"Nb critères","Sous-Article",null,"vérifier si Somme = 1 =>  ",null,{"$f":"SUM(P67:P72)","v":0.99999999999999989},{"$f":"IFERROR(SUM(Q67:Q72),\"\")","v":0},{"$f":"IFERROR(IF(Q66=INFORMATION!$F$24,INFORMATION!$H$24,IF(Q66<=INFORMATION!$F$20,INFORMATION!$G$20,IF(Q66<=INFORMATION!$F$21,INFORMATION!$G$21,IF(Q66<=INFORMATION!$F$22,INFORMATION!$G$22,INFORMATION!$G$23)))),\"\")","v":"Niveau non concerné"},{"$f":"IF(R66=\"Niveau non concerné\",1,0)","v":1},{"$f":"IF(R66=\"Niveau non concerné\",0,1/COUNTIF($S$54:$S$66,\"=0\"))","v":0},{"$f":"T66*Q66","v":0}]
[null,"Rec43","Les organisations impliquées dans votre projet sont conformes aux exigences légales et réglementaires.",null,{"$f":"IF($D67=\"Non concerné\",\"NC\",$N67)","v":""},{"$f":"IF(D67=\"\",\"\",CHOOSE($M67,\"Libellé du critère quand il sera choisi\",INFORMATION!$A$20,INFORMATION!$A$21,INFORMATION!$A$22,INFORMATION!$A$23,\"Non concerné\"))","v":""},"Vous pouvez commenter",null,null,null,{"$f":"K65+1","v":43},{"$f":"D67","v":0},{"$f":"IFERROR((VLOOKUP($D67,INFORMATION!$M$20:$N$24,2,FALSE)),\"\")","v":""},{"$f":"IFERROR(CHOOSE($M67,\"\",INFORMATION!$D$20,INFORMATION!$D$21,INFORMATION!$D$22,INFORMATION!$D$23,INFORMATION!$D$24),\"\")","v":""},{"$f":"IF(L67=\"Non Concerné\",1,0)","v":0},{"$f":"IF(L67=\"Non Concerné\",0,1/COUNTIF($O$67:$O$72,\"=0\"))","v":0.16666666666666666},{"$f":"IFERROR(N67*P67,\"\")","v":""}]
[null,"Rec44","Les principes sont respectés par votre organisme.",null,"",{"$f":"IF(D68=\"\",\"\",CHOOSE($M68,\"Libellé du critère quand il sera choisi\",INFORMATION!$A$20,INFORMATION!$A$21,INFORMATION!$A$22,INFORMATION!$A$23,\"Non concerné\"))","v":""},"Vous pouvez commenter",null,null,null,{"$f":"K67+1","v":44},0,{"$f":"IFERROR((VLOOKUP($D68,INFORMATION!$M$20:$N$24,2,FALSE)),\"\")","v":""},{"$f":"IFERROR(CHOOSE($M68,\"\",INFORMATION!$D$20,INFORMATION!$D$21,INFORMATION!$D$22,INFORMATION!$D$23,INFORMATION!$D$24),\"\")","v":""},0,{"$f":"IF(L68=\"Non Concerné\",0,1/COUNTIF($O$67:$O$72,\"=0\"))","v":0.16666666666666666},""]
[null,"Rec45","Le cadre organisationnel, la politique et le plan de management des risques sont améliorés en continu.",null,"",{"$f":"IF(D69=\"\",\"\",CHOOSE($M69,\"Libellé du critère quand il sera choisi\",INFORMATION!$A$20,INFORMATION!$A$21,INFORMATION!$A$22,INFORMATION!$A$23,\"Non concerné\"))","v":""},"Vous pouvez commenter",null,null,null,{"$f":"K68+1","v":45},0,{"$f":"IFERROR((VLOOKUP($D69,INFORMATION!$M$20:$N$24,2,FALSE)),\"\")","v":""},{"$f":"IFERROR(CHOOSE($M69,\"\",INFORMATION!$D$20,INFORMATION!$D$21,INFORMATION!$D$22,INFORMATION!$D$23,INFORMATION!$D$24),\"\")","v":""},0,0.16666666666666666,""]
[null,"Rec46","Les parties prenantes externes et internes communiquent entre elles à tous les stades du processus de management des risques.",null,"",{"$f":"IF(D70=\"\",\"\",CHOOSE($M70,\"Libellé du critère quand il sera choisi\",INFORMATION!$A$20,INFORMATION!$A$21,INFORMATION!$A$22,INFORMATION!$A$23,\"Non concerné\"))","v":""},"Vous pouvez commenter",null,null,null,46,0,{"$f":"IFERROR((VLOOKUP($D70,INFORMATION!$M$20:$N$24,2,FALSE)),\"\")","v":""},{"$f":"IFERROR(CHOOSE($M70,\"\",INFORMATION!$D$20,INFORMATION!$D$21,INFORMATION!$D$22,INFORMATION!$D$23,INFORMATION!$D$24),\"\")","v":""},0,0.16666666666666666,""]
[null,"Rec47","La communication externe est coordonnée et contrôlée par le propriétaire du projet.",null,"",{"$f":"IF(D71=\"\",\"\",CHOOSE($M71,\"Libellé du critère quand il sera choisi\",INFORMATION!$A$20,INFORMATION!$A$21,INFORMATION!$A$22,INFORMATION!$A$23,\"Non concerné\"))","v":""},"Vous pouvez commenter",null,null,null,47,0,{"$f":"IFERROR((VLOOKUP($D71,INFORMATION!$M$20:$N$24,2,FALSE)),\"\")","v":""},{"$f":"IFERROR(CHOOSE($M71,\"\",INFORMATION!$D$20,INFORMATION!$D$21,INFORMATION!$D$22,INFORMATION!$D$23,INFORMATION!$D$24),\"\")","v":""},0,0.16666666666666666,""]
[null,"Rec48","Les plans de communication et de concertation avec les parties prenantes sont élaborés en début de projet.",null,"",{"$f":"IF(D72=\"\",\"\",CHOOSE($M72,\"Libellé du critère quand il sera choisi\",INFORMATION!$A$20,INFORMATION!$A$21,INFORMATION!$A$22,INFORMATION!$A$23,\"Non concerné\"))","v":""},"Vous pouvez commenter",null,null,null,48,0,{"$f":"IFERROR((VLOOKUP($D72,INFORMATION!$M$20:$N$24,2,FALSE)),\"\")","v":""},{"$f":"IFERROR(CHOOSE($M72,\"\",INFORMATION!$D$20,INFORMATION!$D$21,INFORMATION!$D$22,INFORMATION!$D$23,INFORMATION!$D$24),\"\")","v":""},0,0.16666666666666666,""]

{"sheet":"Résultats","index":3,"n_rows":47,"n_cols":25,"rows_kept":47,"cut":false,"hidden":false,"merged":[[15,1,15,4],[30,1,30,8],[21,1,21,8],[22,1,22,5],[22,6,22,8],[23,6,23,8],[24,6,24,8],[28,1,28,5],[1,1,1,8],[3,1,3,2],[3,3,3,4],[4,1,4,2],[4,3,4,4],[4,7,5,8],[5,1,5,2],[7,1,7,8],[8,1,8,4],[8,5,8,8],[12,1,12,4],[14,1,14,4],[13,1,13,4],[9,5,9,6]]}
[null,{"$f":"INFORMATION!A1","v":"Document basé sur la norme NF EN 62198"},null,null,null,null,null,null,"Impression sur pages A4 100% en format horizontal"]
[null,{"$f":"INFORMATION!B3","v":"SYSTÈME DE MANAGEMENT DES RISQUES DES PROJETS"}]
[]
[null,{"$f":"INFORMATION!A7","v":"Etablissement :"},null,{"$f":"INFORMATION!D7","v":"Nom de l'établissement / entreprise / service..."},null,{"$f":"Recommandations!B4","v":"Date de l'autodiagnostic : "},{"$f":"IFERROR(IF(Recommandations!D4=\"\",\"\",Recommandations!D4),\"\")","v":""},{"$f":"Recommandations!B7","v":"L'équipe du projet :"}]
[null,{"$f":"INFORMATION!A8","v":" Responsable du SMR Projets : "},null,{"$f":"INFORMATION!D8","v":"NOM et Prénom du Responsable Qualité"},null,"Responsable :",{"$f":"IF(Recommandations!D5=\"\",\"\",Recommandations!D5)","v":"NOM et Prénom"},{"$f":"Recommandations!D7","v":"Nom et Prénom des participants"}]
[null,null,null,{"$f":"INFORMATION!D9","v":"Email :"},{"$f":"INFORMATION!H9","v":"Tél :"},{"$f":"Recommandations!D6","v":"Tél :"},{"$f":"Recommandations!F6","v":"@ :"}]
[]
[null,"TABLEAUX DE BORD de vos réponses aux LIGNES DIRECTRICES à la norme NF EN 62198:2014",null,null,null,null,null,null,null,null,null,null,null,null,"Utilitaires pour les CALCULS et les GRAPHIQUES"]
[null,{"$f":"CONCATENATE(\"Niveaux de VÉRACITÉ des \", U12,  \" recommandations évaluées\")","v":"Niveaux de VÉRACITÉ des 48 recommandations évaluées"},null,null,null,"Résultat global par processus"]
[null,null,null,null,null,"Moyenne générale :",null,{"$f":"H33","v":{"$error":"#VALUE!"}},{"$f":"F33","v":""},null,null,null,"Histogramme des niveaux de CONFORMITÉ",null,null,null,null,"Histogramme des niveaux de VÉRACITÉ"]
[null,null,null,null,null,null,null,null,null,null,null,null,"CONFORMITÉ","Nb d'Articles","Tracer la moyenne",null,"VÉRACITÉ",null,"Nb de critères d'exigences","Ecart vs Total des critères","Total des critères","Total des recommandations"]
[null,null,null,null,null,null,null,null,null,null,null,null,"Niveaux",{"$f":"SUM(N13:N16)","v":0},": Total ou 0",{"$f":"U12/4","v":12},"Niveaux","N°",{"$f":"SUM(S13:S16)","v":0},{"$f":"48-(S12+S17)","v":48},{"$f":"(MAX(Recommandations!K13:K72)-S17)","v":48},{"$f":"S12+S17","v":0}]
[null,{"$f":"CONCATENATE(\"Attention : \",$S$17,\" recommandations ne sont pas concernées\")","v":"Attention : 0 recommandations ne sont pas concernées"},null,null,null,null,null,null,null,null,null,null,{"$f":"INFORMATION!G20","v":"Insuffisant"},{"$f":"IFERROR(COUNTIFS($G$35:$G$47,M13),0)","v":0},{"$f":"IF($F$33=M13,$P$12,0)","v":0},null,"Faux",{"$f":"INFORMATION!N20","v":2},{"$f":"IFERROR(COUNTIFS(Recommandations!$M:$M,Résultats!$R13),0)","v":0},null,null,{"$f":"S12+S17","v":0}]
[null,{"$f":"IF($S$12<$U$12,CONCATENATE(\"Attention : \",$T$12,\" recommandations ne sont pas encore traités\"),\"\")","v":"Attention : 48 recommandations ne sont pas encore traités"},null,null,null,null,null,null,null,null,null,null,{"$f":"INFORMATION!G21","v":"Incomplet"},{"$f":"IFERROR(COUNTIFS($G$35:$G$47,M14),0)","v":0},{"$f":"IF($F$33=M14,$P$12,0)","v":0},null,"Plutôt Faux",{"$f":"INFORMATION!N21","v":3},{"$f":"IFERROR(COUNTIFS(Recommandations!$M:$M,Résultats!$R14),0)","v":0},null,null,{"$f":"V12-V13","v":0}]
[null,"Niveaux de SUIVI des PROCESSUS par rapport à la norme (et Moyenne)",null,null,null,null,null,null,null,null,null,null,{"$f":"INFORMATION!G22","v":"Satisfaisant"},{"$f":"IFERROR(COUNTIFS($G$35:$G$47,M15),0)","v":0},0,null,"Plutôt Vrai",{"$f":"INFORMATION!N22","v":4},{"$f":"IFERROR(COUNTIFS(Recommandations!$M:$M,Résultats!$R15),0)","v":0}]
[null,null,null,null,null,null,null,null,null,null,null,null,{"$f":"INFORMATION!G23","v":"Total"},{"$f":"IFERROR(COUNTIFS($G$35:$G$47,M16),0)","v":0},0,null,"Vrai",{"$f":"INFORMATION!N23","v":5},{"$f":"IFERROR(COUNTIFS(Recommandations!$M:$M,Résultats!$R16),0)","v":0}]
[null,null,null,null,null,null,null,null,null,null,null,null,null,null,null,null,"Non concerné",{"$f":"INFORMATION!N24","v":6},{"$f":"IFERROR(COUNTIFS(Recommandations!$M:$M,Résultats!$R17),0)","v":0}]
[]
[]
[]
[]
[null,"BILAN, COMMENTAIRES et PLANS D'AMÉLIORATION"]
[null,"Taux de CORRESPONDANCE aux recommandations pour les 11 GROUPES formulés",null,null,null,null,"COMMENTAIRES sur les RÉSULTATS obtenus"]
[null,null,null,null,null,null,"Commentaires  :"]
[null,null,null,null,null,null,"DÉCISION : Plan d'action PRIORITAIRE"]
[null,null,null,null,null,null,"QUOI\nObjectifs à atteindre","QUI\nen Interne ou en Externe","QUAND ET OÙ\nDate et Champ d'application"]
[null,null,null,null,null,null,"Action n°1 :"]
[null,null,null,null,null,null,"Action n°2 :"]
[null,null,null,null,null,null,"Action n°3 :"]
[]
[null,"Tableau de SYNTHÈSE des résultats par processus",null,null,null,null,null,null,null,null,null,null,null,null,"Coloriage des zones des ARTICLES",null,null,null,null,"Tracage de la limite de CONFORMITÉ"]
[null,null,null,null,null,null,"Evaluations","Taux %","Niveaux de SUIVI",null,null,null,{"$f":"CONCATENATE(\"Fond \",B34)","v":"Fond P1"},{"$f":"CONCATENATE(\"Fond \",B39)","v":"Fond P2"},{"$f":"CONCATENATE(\"Fond \",B44)","v":"Fond P3"},null,null,null,null,{"$f":"INFORMATION!E23","v":0.9}]
[null,"Niveau moyen sur l'ensemble des recommandations",null,null,null,{"$f":"IFERROR(IF(H33=INFORMATION!$D$24,INFORMATION!$H$24,IF(H33<=INFORMATION!$F$20,INFORMATION!$G$20,IF(H33<=INFORMATION!$F$21,INFORMATION!$G$21,IF(H33<=INFORMATION!$F$22,INFORMATION!$G$22,INFORMATION!$G$23)))),\"\")","v":""},null,{"$f":"SUM(Y35:Y44)","v":{"$error":"#VALUE!"}},{"$f":"IF(F33=INFORMATION!H24,\"Niveau NC\",PROPER(MID(Recommandations!F11,1,9)))","v":"Niveau No"},null,null,null,null,null,null,"Utilitaires pour les CALCULS et les GRAPHIQUES"]
[null,{"$f":"Recommandations!B11","v":"P1"},{"$f":"Recommandations!C11","v":"Processus Pilotage"},null,null,{"$f":"Recommandations!D11","v":"Niveau non concerné"},null,{"$f":"IF(Recommandations!E11=\"NA\",0,Recommandations!E11)","v":"NC"},{"$f":"IF(F34=INFORMATION!H24,\"Niveau NC\",PROPER(MID(Recommandations!F12,1,9)))","v":"Niveau NC"}]
[null,null,{"$f":"Recommandations!B12","v":"Gr1"},{"$f":"VLOOKUP($C35,Recommandations!$B$12:$C$72,2,FALSE)","v":"Elaboration de la stratégie de Management des Risques liés à un projet "},null,null,{"$f":"Recommandations!D12","v":"Niveau non concerné"},{"$f":"IF(Recommandations!E12=\"NA\",0,Recommandations!E12)","v":"NC"},{"$f":"IF(G35=INFORMATION!H24,\"Niveau NC\",PROPER(MID(Recommandations!F12,1,9)))","v":"Niveau NC"},null,null,null,1,0,0,null,null,null,null,{"$f":"$T$32","v":0.9},null,null,{"$f":"IF(F34=\"Niveau non concerné\",1,0)","v":1},{"$f":"IF(F34=\"Niveau non concerné\",0,1/COUNTIF($W$35:$W$44,\"=0\"))","v":0},{"$f":"H34*X35","v":{"$error":"#VALUE!"}}]
[null,null,{"$f":"Recommandations!B23","v":"Gr2"},{"$f":"VLOOKUP($C36,Recommandations!$B$12:$C$72,2,FALSE)","v":"Prise des Décisions"},null,null,{"$f":"Recommandations!D23","v":"Niveau non concerné"},{"$f":"IF(Recommandations!E23=\"NA\",0,Recommandations!E23)","v":"NC"},{"$f":"IF(G36=INFORMATION!H24,\"Niveau NC\",PROPER(MID(Recommandations!F23,1,9)))","v":"Niveau NC"},null,null,null,1,0,0,null,null,null,null,{"$f":"$T$32","v":0.9}]
[null,null,{"$f":"Recommandations!B27","v":"Gr3"},{"$f":"VLOOKUP($C37,Recommandations!$B$12:$C$72,2,FALSE)","v":"Identification des Responsabilités"},null,null,{"$f":"Recommandations!D27","v":"Niveau non concerné"},{"$f":"IF(Recommandations!E27=\"NA\",0,Recommandations!E27)","v":"NC"},{"$f":"IF(G37=INFORMATION!H24,\"Niveau NC\",PROPER(MID(Recommandations!F27,1,9)))","v":"Niveau NC"},null,null,null,1,0,0,null,null,null,null,{"$f":"$T$32","v":0.9}]
[null,null,{"$f":"Recommandations!B33","v":"Gr4"},{"$f":"VLOOKUP($C38,Recommandations!$B$12:$C$72,2,FALSE)","v":"Compréhension du Contexte"},null,null,{"$f":"Recommandations!D33","v":"Niveau non concerné"},{"$f":"IF(Recommandations!E33=\"NA\",0,Recommandations!E33)","v":"NC"},{"$f":"IF(G38=INFORMATION!H24,\"Niveau NC\",PROPER(MID(Recommandations!F33,1,9)))","v":"Niveau NC"},null,null,null,1,0,0,null,null,null,null,{"$f":"$T$32","v":0.9}]
[null,{"$f":"Recommandations!B35","v":"P2"},{"$f":"Recommandations!C35","v":"Processus Réalisation"},null,null,{"$f":"Recommandations!D35","v":"Niveau non concerné"},null,{"$f":"IF(Recommandations!E35=\"NA\",0,Recommandations!E35)","v":"NC"},{"$f":"IF(F39=INFORMATION!H24,\"Niveau NC\",PROPER(MID(Recommandations!F35,1,9)))","v":"Niveau NC"},null,null,null,null,null,null,null,null,null,null,null,null,null,{"$f":"IF(F39=\"Niveau non concerné\",1,0)","v":1},{"$f":"IF(F39=\"Niveau non concerné\",0,1/COUNTIF($W$35:$W$44,\"=0\"))","v":0},{"$f":"H39*X39","v":{"$error":"#VALUE!"}}]
[null,null,{"$f":"Recommandations!B36","v":"Gr5"},{"$f":"VLOOKUP($C40,Recommandations!$B$12:$C$72,2,FALSE)","v":"Identification des Risques"},null,null,{"$f":"Recommandations!D36","v":"Niveau non concerné"},{"$f":"IF(Recommandations!E36=\"NA\",0,Recommandations!E36)","v":"NC"},{"$f":"IF(G40=INFORMATION!H24,\"Niveau NC\",PROPER(MID(Recommandations!F36,1,9)))","v":"Niveau NC"},null,null,null,1,1,0,null,null,null,null,{"$f":"$T$32","v":0.9}]
[null,null,{"$f":"Recommandations!B40","v":"Gr6"},{"$f":"VLOOKUP($C41,Recommandations!$B$12:$C$72,2,FALSE)","v":"Caractérisation des Risques"},null,null,{"$f":"Recommandations!D40","v":"Niveau non concerné"},{"$f":"IF(Recommandations!E40=\"NA\",0,Recommandations!E40)","v":"NC"},{"$f":"IF(G41=INFORMATION!H24,\"Niveau NC\",PROPER(MID(Recommandations!F40,1,9)))","v":"Niveau NC"},null,null,null,0,1,0,null,null,null,null,{"$f":"$T$32","v":0.9}]
[null,null,{"$f":"Recommandations!B45","v":"Gr7"},{"$f":"VLOOKUP($C42,Recommandations!$B$12:$C$72,2,FALSE)","v":"Elaboration d'un Plan de Management des Risques"},null,null,{"$f":"Recommandations!D45","v":"Niveau non concerné"},{"$f":"IF(Recommandations!E45=\"NA\",0,Recommandations!E45)","v":"NC"},{"$f":"IF(G42=INFORMATION!H24,\"Niveau NC\",PROPER(MID(Recommandations!F45,1,9)))","v":"Niveau NC"},null,null,null,0,1,0,null,null,null,null,{"$f":"$T$32","v":0.9}]
[null,null,{"$f":"Recommandations!B48","v":"Gr8"},{"$f":"VLOOKUP($C43,Recommandations!$B$12:$C$72,2,FALSE)","v":"Elaboration d'un Processus de Management des Risques"},null,null,{"$f":"Recommandations!D48","v":"Niveau non concerné"},{"$f":"IF(Recommandations!E48=\"NA\",0,Recommandations!E48)","v":"NC"},{"$f":"IF(G43=INFORMATION!H24,\"Niveau NC\",PROPER(MID(Recommandations!F48,1,9)))","v":"Niveau NC"},null,null,null,0,1,0,null,null,null,null,{"$f":"$T$32","v":0.9}]
[null,{"$f":"Recommandations!B53","v":"P3"},{"$f":"Recommandations!C53","v":"Processus Support"},null,null,{"$f":"Recommandations!D53","v":"Niveau non concerné"},null,{"$f":"IF(Recommandations!E53=\"NA\",0,Recommandations!E53)","v":"NC"},{"$f":"IF(F44=INFORMATION!H24,\"Niveau NC\",PROPER(MID(Recommandations!F53,1,9)))","v":"Niveau NC"},null,null,null,null,null,null,null,null,null,null,null,null,null,{"$f":"IF(F44=\"Niveau non concerné\",1,0)","v":1},{"$f":"IF(F44=\"Niveau non concerné\",0,1/COUNTIF($W$35:$W$44,\"=0\"))","v":0},{"$f":"H44*X44","v":{"$error":"#VALUE!"}}]
[null,null,{"$f":"Recommandations!B54","v":"Gr9"},{"$f":"VLOOKUP($C45,Recommandations!$B$12:$C$72,2,FALSE)","v":"Elaboration des Documentations"},null,null,{"$f":"Recommandations!D54","v":"Niveau non concerné"},{"$f":"IF(Recommandations!E54=\"NA\",0,Recommandations!E54)","v":"NC"},{"$f":"IF(G45=INFORMATION!H24,\"Niveau NC\",PROPER(MID(Recommandations!F54,1,9)))","v":"Niveau NC"},null,null,null,0,1,1,null,null,null,null,{"$f":"$T$32","v":0.9}]
[null,null,{"$f":"Recommandations!B62","v":"Gr10"},{"$f":"VLOOKUP($C46,Recommandations!$B$12:$C$72,2,FALSE)","v":"Allocation des Ressources "},null,null,{"$f":"Recommandations!D62","v":"Niveau non concerné"},{"$f":"IF(Recommandations!E62=\"NA\",0,Recommandations!E62)","v":"NC"},{"$f":"IF(G46=INFORMATION!H24,\"Niveau NC\",PROPER(MID(Recommandations!F62,1,9)))","v":"Niveau NC"},null,null,null,0,0,1,null,null,null,null,{"$f":"$T$32","v":0.9}]
[null,null,{"$f":"Recommandations!B66","v":"Gr11"},{"$f":"VLOOKUP($C47,Recommandations!$B$12:$C$72,2,FALSE)","v":"Cadre Organisationnel"},null,null,{"$f":"Recommandations!D66","v":"Niveau non concerné"},{"$f":"IF(Recommandations!E66=\"NA\",0,Recommandations!E66)","v":"NC"},{"$f":"IF(G47=INFORMATION!H24,\"Niveau NC\",PROPER(MID(Recommandations!F66,1,9)))","v":"Niveau NC"},null,null,null,0,0,1,null,null,null,null,{"$f":"$T$32","v":0.9}]

{"sheet":"Détaillé","index":4,"n_rows":33,"n_cols":9,"rows_kept":33,"cut":false,"hidden":false,"merged":[[1,1,1,8],[26,6,26,8],[27,6,27,8],[28,6,28,8],[3,1,3,2],[3,3,3,4],[4,7,5,8],[8,6,8,8],[3,7,3,8],[4,1,4,2],[4,3,4,4],[5,1,5,2],[9,6,9,8],[10,6,10,8],[19,6,19,8],[17,6,17,8],[18,6,18,8]]}
[null,{"$f":"INFORMATION!A1","v":"Document basé sur la norme NF EN 62198"},null,null,null,null,null,null,"Impression sur pages A4 100% en format horizontal"]
[null,{"$f":"INFORMATION!B3","v":"SYSTÈME DE MANAGEMENT DES RISQUES DES PROJETS"}]
[]
[null,{"$f":"INFORMATION!A7","v":"Etablissement :"},null,{"$f":"INFORMATION!D7","v":"Nom de l'établissement / entreprise / service..."},null,{"$f":"Recommandations!B4","v":"Date de l'autodiagnostic : "},{"$f":"IFERROR(IF(Recommandations!D4=\"\",\"\",Recommandations!D4),\"\")","v":""},{"$f":"Recommandations!B7","v":"L'équipe du projet :"}]
[null,{"$f":"INFORMATION!A8","v":" Responsable du SMR Projets : "},null,{"$f":"INFORMATION!D8","v":"NOM et Prénom du Responsable Qualité"},null,"Responsable : ",{"$f":"Recommandations!D5","v":"NOM et Prénom"},{"$f":"Recommandations!D7","v":"Nom et Prénom des participants"}]
[null,null,null,{"$f":"INFORMATION!D9","v":"Email :"},{"$f":"INFORMATION!H9","v":"Tél :"},{"$f":"Recommandations!D6","v":"Tél :"},{"$f":"Recommandations!F6","v":"@ :"}]
[]
[null,null,{"$f":"Recommandations!B11","v":"P1"},{"$f":"Recommandations!C11","v":"Processus Pilotage"}]
[null,null,"Niveau d'évaluation"," Taux de VÉRACITÉ aux recommandations",null,null,"COMMENTAIRES sur les RÉSULTATS obtenus"]
[null,null,{"$f":"Résultats!F34","v":"Niveau non concerné"},{"$f":"IF(C10=\"Niveau non concerné\",\"NA\",Résultats!H34)","v":"NA"},null,null,"Commentaires :"]
[null,null,null,null,null,null,"DÉCISION : Plan d'action PRIORITAIRE"]
[null,null,null,null,null,null,"QUOI\nObjectifs à atteindre","QUI\nen Interne ou en Externe","QUAND ET OÙ\nDate et Champ d'application"]
[null,null,null,null,null,null,"Action n°1 :"]
[null,null,null,null,null,null,"Action n°2 :"]
[null,null,null,null,null,null,"Action n°3 :"]
[]
[null,null,{"$f":"Recommandations!B35","v":"P2"},{"$f":"Recommandations!C35","v":"Processus Réalisation"}]
[null,null,{"$f":"C9","v":"Niveau d'évaluation"},{"$f":"D9","v":" Taux de VÉRACITÉ aux recommandations"},null,null,"COMMENTAIRES sur les RÉSULTATS obtenus"]
[null,null,{"$f":"Résultats!F39","v":"Niveau non concerné"},{"$f":"IF(C19=\"Niveau non concerné\",\"NA\",Résultats!H39)","v":"NA"},null,null,"Commentaires :"]
[null,null,null,null,null,null,"DÉCISION : Plan d'action PRIORITAIRE"]
[null,null,null,null,null,null,"QUOI\nObjectifs à atteindre","QUI\nen Interne ou en Externe","QUAND ET OÙ\nDate et Champ d'application"]
[null,null,null,null,null,null,"Action n°1 :"]
[null,null,null,null,null,null,"Action n°2 :"]
[null,null,null,null,null,null,"Action n°3 :"]
[]
[null,null,{"$f":"Recommandations!B53","v":"P3"},{"$f":"Recommandations!C53","v":"Processus Support"}]
[null,null,{"$f":"C9","v":"Niveau d'évaluation"},{"$f":"D9","v":" Taux de VÉRACITÉ aux recommandations"},null,null,"COMMENTAIRES sur les RÉSULTATS obtenus"]
[null,null,{"$f":"Résultats!F44","v":"Niveau non concerné"},{"$f":"IF(C28=\"Niveau non concerné\",\"NA\",Résultats!H44)","v":"NA"},null,null,"Commentaires :"]
[null,null,null,null,null,null,"DÉCISION : Plan d'action PRIORITAIRE"]
[null,null,null,null,null,null,"QUOI\nObjectifs à atteindre","QUI\nen Interne ou en Externe","QUAND ET OÙ\nDate et Champ d'application"]
[null,null,null,null,null,null,"Action n°1 :"]
[null,null,null,null,null,null,"Action n°2 :"]
[null,null,null,null,null,null,"Action n°3 :"]

{"sheet":"Déclaration","index":5,"n_rows":34,"n_cols":6,"rows_kept":34,"cut":false,"hidden":false,"merged":[[32,0,32,2],[28,0,28,2],[28,3,28,5],[29,0,29,2],[29,3,29,5],[30,0,30,2],[30,3,30,4],[27,0,27,2],[27,3,27,5],[15,0,15,5],[16,0,16,5],[19,0,19,2],[19,3,19,5],[20,0,20,2],[20,3,20,5],[21,0,21,2],[21,3,21,5],[23,0,23,5],[25,0,25,2],[25,3,25,5],[17,0,17,5],[18,0,18,5],[11,0,11,3],[1,0,1,5],[3,0,3,5],[4,0,4,2],[4,3,4,5],[5,0,5,2],[5,3,5,5],[6,0,6,5],[7,0,7,5],[8,0,8,5],[9,0,9,5],[10,0,10,3],[2,0,2,5]]}
[{"$f":"INFORMATION!A1","v":"Document basé sur la norme NF EN 62198"},null,null,null,null,"Impression sur 1 page A4 100% en vertical"]
["SYSTÈME DE MANAGEMENT DES RISQUES DES PROJETS"]
[{"$f":"\"- LA QUALITÉ POUR PERFORMER -\"","v":"- LA QUALITÉ POUR PERFORMER -"}]
["Déclaration de véracité aux recommandations de la norme NF EN 62198"]
["Date limite de validité de la déclaration :",null,null,"Référence unique de la déclaration NF EN 62198"]
[{"$f":"IFERROR(A33+364,\"Date de la déclaration + 1 an\")","v":"Date de la déclaration + 1 an"},null,null,{"$f":"IF(A33=\"\",\"remplir la cellule de date de la déclaration (onglet ISO 17050)\",IF(ISERROR(YEAR(A33)),\"date de la déclaration invalide\",CONCATENATE(\"Autodeclaration_ISO_17050_sur_la_NF_S99-170_en_\",YEAR(A33),\"_\",MONTH(A33),\"_\",DAY(A33))))","v":"date de la déclaration invalide"}]
["Objet de la déclaration : Niveau de VÉRACITÉ aux RECOMMANDATIONS selon l'outil d'autodiagnostic"]
[{"$f":"INFORMATION!D7","v":"Nom de l'établissement / entreprise / service..."}]
["Nous soussignés, déclarons sous notre propre responsabilité que les niveaux de correspondance de nos pratiques professionnelles ont été mesurés d'après les recommandations de la norme NF EN 62198:2014."]
["Nous avons appliqué la meilleure rigueur d'élaboration et d'analyse (évaluation par plusieurs personnes compétentes) et nous avons respecté les règles d'éthique professionnelle (absence de conflits d'intérêt, respect des opinions, liberté des choix) pour parvenir aux résultats ci-dessous."]
["Tableau des résultats de VÉRACITÉ de nos activités \nselon les recommandations tirées de la norme NF EN 62198:2014",null,null,null,"Taux moyen","Niveaux de Correspondance"]
[{"$f":"Résultats!B33","v":"Niveau moyen sur l'ensemble des recommandations"},null,null,null,{"$f":"Résultats!H33","v":{"$error":"#VALUE!"}},{"$f":"IF(Résultats!$G$33=INFORMATION!$G$23,Résultats!$G$33,\"Non déclarable\")","v":"Non déclarable"}]
[{"$f":"Résultats!B34","v":"P1"},{"$f":"Résultats!C34","v":"Processus Pilotage"},null,null,{"$f":"Résultats!H34","v":"NC"},{"$f":"IF(Résultats!$F$34=INFORMATION!$G$23,Résultats!F34,\"Non déclarable\")","v":"Non déclarable"}]
[{"$f":"Résultats!B39","v":"P2"},{"$f":"Résultats!C39","v":"Processus Réalisation"},null,null,{"$f":"Résultats!H39","v":"NC"},{"$f":"IF(Résultats!$F$39=INFORMATION!$G$23,Résultats!$F$39,\"Non déclarable\")","v":"Non déclarable"}]
[{"$f":"Résultats!B44","v":"P3"},{"$f":"Résultats!C44","v":"Processus Support"},null,null,{"$f":"Résultats!H44","v":"NC"},{"$f":"IF(Résultats!$F$44=INFORMATION!$G$23,Résultats!$F$44,\"Non déclarable\")","v":"Non déclarable"}]
[]
[]
["Documents d'appui consultables associés à la déclaration ISO 17050"]
["Déclaration de conformité selon l'ISO 17050 Partie 2 : Documentation d'appui  (NF EN ISO/CEI 17050-2)"]
["Documents génériques",null,null,"Documents spécifiques"]
["Norme NF EN 62198:2014 \"Gestion des risques liés à um projet - Lignes directrices pour l'application\", édition  Afnor, www.afnor.org, 16 mai 2014",null,null,"Modifier les contenus bleus et mettre ensuite en noir : \nEnregistrements qualité : indiquez ceux que vous mettrez à disposition d'un auditeur. Il peut s'agir des onglets imprimés et signés de ce fichier d'autodiagnostic"]
["Outil d'autodiagnostic : Fichier Excel® automatisé mis au point à l'Université de Technologie de Compiègne, France (www.utc.fr) - voir sa dénomination au bas de la feuille",null,null,"Autre document d'appui : Mettre ici, et en noir, tout autre document d'appui éventuel pour cette déclaration"]
[]
["Signataires"]
["Personne indépendante à l'organisme : ",null,null,"Personne responsable de l'organisme : "]
["Indiquer les NOM et Prénom de la personne indépendante",null,null,{"$f":"INFORMATION!D7","v":"Nom de l'établissement / entreprise / service..."}]
["Coordonnées professionnelles : ",null,null,"Coordonnées professionnelles : "]
["Organisme de la personne indépendante",null,null,{"$f":"INFORMATION!D8","v":"NOM et Prénom du Responsable Qualité"}]
["Adresse complète de l'organisme de la personne indépendante",null,null,"Adresse complète de l'Exploitant"]
["Code postal - Ville - Pays de l'organisme de la personne indépendante",null,null,"Code postal - Ville - Pays de l'Exploitant"]
["Tél et email de la personne indépendante",null,null,{"$f":"INFORMATION!$D$9","v":"Email :"},null,{"$f":"INFORMATION!$H$9","v":"Tél :"}]
["Date de la déclaration (jj/mm/aaaa) :",null,null,"Date de l'autodiagnostic (jj/mm/aaaa) :"]
["Mettre la date de signature par la personne compétente",null,null,{"$f":"IF(Recommandations!$D$4=\"\",\"pas de date d'évaluation pour l'instant\",Recommandations!$D$4)","v":"pas de date d'évaluation pour l'instant"}]
["Signature :",null,null,"Signature :"]